Cogmind - Beta 16.1 @@@ ROGUE MODE // 2026.04.02 @ 23:49:01 Player: JuustuToug Result: Destroyed by X-87 Electro with Compact HERF Cannon Performance ------------- Evolutions (9) 4500 Regions Visited (31) 6200 Robots Destroyed (481) 2405 Value Destroyed (20569) 20569 Prototype IDs (67) 1340 Alien Tech Used (3) 600 Bonus (11746) 11746 TOTAL SCORE: 47360 Bonus ------- High Alert Combat Kills 1981 Follower Combat Kills 1618 Awakened Behemoth Slayer 1000 Network Hubs Disabled 400 Met Imprinter 300 Met Zhirov 300 Met Warlord at Base 500 MAIN.C Attacked Warlord 500 Warlord Defense Kills 220 Built Enhanced Grunts 300 A7 Reached Mainframe 300 Met R17 at Cetus 500 Met R17 at Research 2000 Met Warlord at Research 2000 Friendly Fire -173 Cogmind --------- Core Integrity 0/1600 Matter 138/300 Energy 380/380 System Corruption 84% Temperature Cool (0) Movement Treading (210) Ox1 Location -1/Access Parts ------- > --- POWER (3) -------- Cooled Antimatter Reactor > --- PROPULSION (6) --- Armored Heavy Treads > --- UTILITY (14) ----- High-capacity Storage Unit Advanced Signal Interpreter Quantum Capacitor Graphene Brace Hacking Drone Bay (0/1) > --- WEAPON (3) ------- (None) > --- INVENTORY (20) --- Advanced Heat Sink Advanced Heat Sink Advanced Heat Sink Advanced Sensor Array Advanced Sensor Array Improved Point Defense System Quantum Rifle Enhanced Quantum Rifle Vortex Cannon (26) Enhanced Nova Cannon Advanced Remote Datajack CR-A16's Behemoth Slayer Peak State ------------ > --- POWER ------------ Micro Antimatter Reactor Quantum Reactor Light Quantum Reactor > --- PROPULSION ------- Heavy Siege Treads Armored Heavy Treads Armored Heavy Treads > --- UTILITY ---------- Advanced Cryofiber Web Advanced Heat Sink High-capacity Storage Unit Machine Analyzer Advanced Sensor Array Advanced Signal Interpreter Experimental Core Analyzer Quantum Capacitor Advanced Transmission Jammer Experimental Cloaking Device Layered Heavy Armor Plating Hacking Drone Bay > --- WEAPON ----------- Quantum Rifle Enhanced Quantum Rifle Null Cannon > --- INVENTORY -------- Quantum Reactor Light Quantum Reactor Light Quantum Reactor Armored Medium Treads Heavy Siege Treads Advanced Heat Sink Advanced Heat Sink Advanced Heat Sink Advanced Heat Sink Advanced Sensor Array Graphene Brace Improved Point Defense System Transdimensional Reconstructor Quantum Rifle Enhanced Quantum Rifle Vortex Cannon Enhanced Nova Cannon Advanced Remote Datajack CR-A16's Behemoth Slayer [Rating: 205] Favorites ----------- Power Quantum Reactor Engine Improved Deuterium Engine Power Core Nuclear Core Reactor Quantum Reactor Propulsion Light Treads Treads Light Treads Leg Experimental Myomer Leg Utility High-capacity Storage Unit Device Advanced Heat Sink Storage High-capacity Storage Unit Processor Machine Analyzer Hackware Hacking Suite Protection Centrium Medium Armor Plating Weapon Plasma Cannon Energy Gun Quantum Rifle Energy Cannon Plasma Cannon Ballistic Gun Assault Rifle Launcher Rocket Launcher Special Weapon Welding Torch Slashing Weapon Katana Piercing Weapon CR-A16's Behemoth Slayer Build | -11 -10 -10 -9 -9 -8 -7 -7 -7 -7 -6 -6 -6 -6 -6 -6 -5 -5 -5 -5 -4 -4 -4 -4 -4 -4 -4 -3 -3 -3 -2 -1 ------- Run | Yrd Mat Min Mat Sto Mat Fac Low Low Zio Pro Fac Ext Cet Arc Hub Fac Upp Upp Zhi Pro Fac Was Fac Upp Upp War Pro Res Tes Res Acc Slots Evolved 18 | . . . 2 . 2 2 . . . . 2 . . . . 2 . . . . 2 . . . . . . 2 . 2 2 Power 1 | . . . . . . . . . . . . . . . . . . . . . . . . . . . . . . . 1 Propulsion 4 | . . . 1 . 1 . . . . . 1 . . . . . . . . . . . . . . . . 1 . . . Utility 12 | . . . 1 . 1 2 . . . . 1 . . . . 1 . . . . 2 . . . . . . 1 . 2 1 Weapon 1 | . . . . . . . . . . . . . . . . 1 . . . . . . . . . . . . . . . Parts Attached 329 | 8 13 1 33 12 12 11 3 4 1 1 14 17 12 3 1 6 3 4 4 1 9 4 15 3 2 20 4 17 11 17 63 Power 50 | 2 4 1 4 2 3 . . 1 . . . 3 4 . . . 1 . . . 2 1 2 . . 2 . . . 5 13 Engine 16 | 2 3 1 4 2 1 . . 1 . . . 2 . . . . . . . . . . . . . . . . . . . Core 5 | . 1 . . . 2 . . . . . . . . . . . 1 . . . . . 1 . . . . . . . . Reactor 29 | . . . . . . . . . . . . 1 4 . . . . . . . 2 1 1 . . 2 . . . 5 13 Propulsion 77 | 2 . . 13 7 5 4 1 1 . . 4 5 2 . . 1 . . . 1 . 2 2 2 . 2 2 4 . 3 14 Treads 76 | 2 . . 13 7 5 4 1 1 . . 4 5 2 . . 1 . . . 1 . 2 2 2 . 1 2 4 . 3 14 Leg 1 | . . . . . . . . . . . . . . . . . . . . . . . . . . 1 . . . . . Wheel . | . . . . . . . . . . . . . . . . . . . . . . . . . . . . . . . . Hover . | . . . . . . . . . . . . . . . . . . . . . . . . . . . . . . . . Flight . | . . . . . . . . . . . . . . . . . . . . . . . . . . . . . . . . Utility 124 | 1 5 . 4 2 2 4 1 . 1 1 7 7 6 3 . 3 1 3 3 . 5 . 9 1 1 9 1 10 6 5 23 Device 85 | . 4 . 4 1 1 1 . . 1 . 3 4 2 3 . 2 1 3 1 . 5 . 7 1 1 8 1 7 5 3 16 Storage 8 | 1 1 . . . . . . . . . . 1 . . . 1 . . 1 . . . 1 . . . . 1 . . 1 Processor 9 | . . . . . 1 2 . . . . 2 . . . . . . . . . . . . . . 1 . 1 . . 2 Hackware 1 | . . . . 1 . . . . . . . . . . . . . . . . . . . . . . . . . . . Protection 21 | . . . . . . 1 1 . . 1 2 2 4 . . . . . 1 . . . 1 . . . . 1 1 2 4 Artifact . | . . . . . . . . . . . . . . . . . . . . . . . . . . . . . . . . Weapon 78 | 3 4 . 12 1 2 3 1 2 . . 3 2 . . 1 2 1 1 1 . 2 1 2 . 1 7 1 3 5 4 13 Energy Gun 21 | 1 . . . 1 . . . . . . 1 . . . . . . . . . 1 . 1 . 1 4 . 1 2 . 8 Energy Cannon 30 | . . . 3 . . 2 1 1 . . 2 1 . . . 2 1 1 . . 1 1 . . . 2 1 2 2 4 3 Ballistic Gun 11 | 2 2 . 7 . . . . . . . . . . . . . . . . . . . . . . . . . . . . Ballistic Cannon . | . . . . . . . . . . . . . . . . . . . . . . . . . . . . . . . . Launcher 9 | . 1 . 1 . 2 . . 1 . . . . . . 1 . . . . . . . . . . . . . 1 . 2 Special Weapon 1 | . 1 . . . . . . . . . . . . . . . . . . . . . . . . . . . . . . Impact Weapon . | . . . . . . . . . . . . . . . . . . . . . . . . . . . . . . . . Slashing Weapon 3 | . . . 1 . . 1 . . . . . . . . . . . . . . . . . . . 1 . . . . . Piercing Weapon 3 | . . . . . . . . . . . . 1 . . . . . . 1 . . . 1 . . . . . . . . Special Melee Weapon . | . . . . . . . . . . . . . . . . . . . . . . . . . . . . . . . . Unidentified Prototypes 39 | . . . 2 1 1 . . 1 1 . 1 . 2 . . 1 . . 4 . . . 1 . . 9 . 7 5 1 2 Corrupted Parts 8 | . . . . . . . . . . . . . 3 . . . . . . . . . . . . . . . . 1 4 System Corruption 37 | . . . . . . . . . . . . . 11 . . . . . . . . . . . . . . . . 1 25 Parts Lost 90 | . 1 . 2 . . . . . . . 1 7 . . 1 1 . . . . 6 . 3 1 1 2 . . 4 5 55 Power 18 | . . . . . . . . . . . . 3 . . . . . . . . 1 . . . . 1 . . . 1 12 Propulsion 12 | . . . . . . . . . . . . 3 . . . 1 . . . . . . . . 1 . . . . 1 6 Utility 42 | . 1 . 2 . . . . . . . 1 1 . . . . . . . . 2 . 3 1 . 1 . . 3 2 25 Weapon 18 | . . . . . . . . . . . . . . . 1 . . . . . 3 . . . . . . . 1 1 12 Highest Loss Streak 20 | . 1 . 1 . . . . . . . 1 6 . . 1 1 . . . . 3 . 2 1 1 2 . . 2 4 20 To Critical Strikes . | . . . . . . . . . . . . . . . . . . . . . . . . . . . . . . . . Average Backups 17 | 1 7 16 19 19 19 19 19 19 19 19 19 19 18 18 18 17 17 18 17 18 18 16 16 16 17 16 18 18 18 17 17 Power 1 | . 1 2 1 1 1 1 1 . . . . . . 1 1 1 1 1 1 1 1 2 1 1 1 . 1 1 1 . 1 Propulsion 3 | . . 1 3 4 4 5 5 6 6 6 4 3 3 4 4 3 3 3 3 2 2 2 3 3 3 3 3 3 3 2 2 Utility 6 | . 1 6 5 6 6 7 8 8 7 7 7 7 7 6 6 5 5 6 7 7 6 5 5 5 5 4 6 7 6 6 4 Weapon 6 | . 4 5 8 7 7 6 5 5 6 6 6 7 6 6 6 5 7 6 5 5 6 4 4 5 5 6 5 5 5 6 6 Tool/Special . | . . . . . . . . . . . . . . . . . . . . . . . . . . . . . . . . Unused Backups 92 | . 3 1 16 6 9 4 1 2 4 . 2 . 4 1 1 6 . . . . 1 . 2 1 1 3 . 1 2 4 17 Power 7 | . 2 . . . 2 . . . . . . . . . . . . . . . . . . . . . . . . 2 1 Propulsion 15 | . . . 3 1 . . . 1 . . . . 4 . . . . . . . . . . 1 . . . . . . 5 Utility 26 | . . 1 2 1 2 2 . . 3 . 2 . . 1 . 4 . . . . . . 2 . . 2 . . . . 4 Weapon 39 | . 1 . 10 4 5 2 1 1 1 . . . . . . 1 . . . . 1 . . . 1 1 . . 2 2 6 Tool/Special 5 | . . . 1 . . . . . . . . . . . 1 1 . . . . . . . . . . . 1 . . 1 Average Slot Usage (%) 91 | . 99 100 99 98 99 99 100 100 100 100 99 99 89 86 87 87 88 88 72 88 89 89 89 89 85 84 85 80 77 80 83 Engine 3 | . 5 6 11 11 5 . . 6 7 7 6 8 . . . . . . . . . . . . . . . . . . . Core 2 | . 8 7 . . 3 7 7 7 7 7 6 3 . . . . . 5 5 5 4 . . . . . . . . . . Reactor 4 | . . . . . . . . . . . . . 11 12 12 11 9 5 5 5 5 10 9 10 10 8 5 4 4 7 10 Treads 21 | . 27 28 32 32 35 29 30 28 28 28 30 31 20 18 18 15 16 16 16 16 15 14 14 15 10 10 15 13 13 11 10 Device 19 | . 13 14 21 11 9 9 13 12 14 13 10 11 12 16 12 16 15 15 16 16 24 25 29 24 25 24 28 28 22 27 33 Storage 6 | . 14 14 11 11 9 7 7 7 7 7 6 6 6 6 6 5 5 5 5 5 5 5 5 5 5 5 5 4 4 4 3 Processor 12 | . . . . . 8 20 23 21 21 21 18 18 18 18 18 16 16 16 16 16 15 15 11 10 10 10 10 10 13 12 10 Protection 3 | . . . . . . . . 1 . . 7 6 5 1 5 4 5 5 4 5 4 5 4 10 10 10 6 5 3 3 . Energy Gun 2 | . . . . . . . . . . . . . . . . . . . . . . . 4 5 5 13 14 10 9 2 4 Energy Cannon 9 | . . . 4 21 17 14 14 13 14 13 11 11 11 12 11 15 15 15 . 16 14 14 9 9 10 1 . 2 3 8 4 Ballistic Gun 3 | . 27 28 16 . . . . . . . . . . . . . . . . . . . . . . . . . . . . Peak Build Rating 205 | 6 11 11 19 25 28 45 45 49 54 54 59 67 110 112 114 124 127 118 113 114 134 134 138 141 124 147 144 166 178 189 205 Average Rating 91 | 5 8 9 16 22 25 42 43 46 48 48 53 60 100 106 110 114 115 113 101 113 122 133 130 126 121 130 142 152 171 180 185 On Entrance 87 | . 6 11 9 18 22 25 45 42 48 49 49 57 65 110 110 105 117 112 116 113 113 134 133 134 126 123 141 142 165 174 178 Avg Prop Armor Cover (%) 3 | . . . . . . . . . . . . . . . . 4 4 4 5 . . 4 4 3 . 2 . . . . . Naked Turns . | . . . . . . . . . . . . . . . . . . . . . . . . . . . . . . . . Heaviest Build 156 | 14 51 50 58 58 58 64 72 80 73 78 84 87 104 104 104 112 117 112 105 106 118 122 118 118 118 118 112 120 127 156 151 Greatest Support 220 | 40 40 40 60 69 83 80 80 88 88 88 108 110 190 190 190 190 190 190 190 190 190 190 190 185 140 172 172 215 195 210 220 Greatest Overweight (x) 1 | . 1 1 1 . . . . . . . 1 . . . . . . . . . . . . . . . . . 1 . 1 Average Overweight (x) . | . . 1 . . . . . . . . . . . . . . . . . . . . . . . . . . . . . Largest Inventory Capacity 20 | 8 20 20 20 20 20 20 20 20 20 20 20 20 20 20 20 20 20 20 20 20 20 20 20 20 20 20 20 20 20 20 20 Average Capacity 19 | 7 10 20 20 20 20 20 20 20 20 20 20 20 20 20 20 20 20 20 20 20 20 20 20 20 20 20 20 20 20 20 20 Most Carried 20 | 3 16 18 20 20 20 20 20 20 20 19 20 20 20 20 20 20 20 20 20 20 20 20 20 20 20 20 20 20 20 20 20 Average Carried 18 | 1 7 16 19 19 19 19 19 19 19 19 19 19 19 20 19 19 19 20 19 19 19 18 19 19 20 19 20 19 19 18 19 Final Capacity 20 | 8 20 20 20 20 20 20 20 20 20 20 20 20 20 20 20 20 20 20 20 20 20 20 20 20 20 20 20 20 20 20 20 Final Carried 20 | 3 15 17 20 20 20 20 20 20 19 19 20 19 20 20 20 19 20 20 20 20 17 19 20 20 20 20 20 20 19 18 12 Class Distribution -------------------- 27% | Scavenger-Skirmisher 18% | Scavenger-Tank 15% | Skirmisher 15% | Scavenger-Mutant 13% | Mutant 3% | Commander-Skirmisher Dominant Class ---------------- Mutant | -10/Materials Mutant | -10/Mines Scavenger-Mutant | -9/Materials Mutant | -9/Storage Scavenger-Mutant | -8/Materials Skirmisher | -7/Factory Skirmisher | -7/Lower Caves Skirmisher | -7/Lower Caves Skirmisher | -7/Zion Skirmisher | -6/Proximity Caves Skirmisher | -6/Factory Scavenger-Skirmisher | -6/Extension Commander-Mutant | -6/Cetus Commander-Skirmisher | -6/Archives Commander-Skirmisher | -6/Hub_04(d) Scavenger-Skirmisher | -5/Factory Scavenger-Skirmisher | -5/Upper Caves Scavenger-Skirmisher | -5/Upper Caves Scavenger-Mutant | -5/Zhirov Scavenger-Skirmisher | -4/Proximity Caves Scavenger-Tank | -4/Factory Scavenger-Tank | -4/Waste Scavenger-Skirmisher | -4/Factory Scavenger-Tank | -4/Upper Caves Scavenger-Tank | -4/Upper Caves Scavenger-Tank | -4/Warlord Scavenger-Skirmisher | -3/Proximity Caves Scavenger-Skirmisher | -3/Research Infiltrator-Skirmisher | -3/Testing Scavenger-Tank | -2/Research Scavenger-Skirmisher | -1/Access Resources | -11 -10 -10 -9 -9 -8 -7 -7 -7 -7 -6 -6 -6 -6 -6 -6 -5 -5 -5 -5 -4 -4 -4 -4 -4 -4 -4 -3 -3 -3 -2 -1 ----------- Run | Yrd Mat Min Mat Sto Mat Fac Low Low Zio Pro Fac Ext Cet Arc Hub Fac Upp Upp Zhi Pro Fac Was Fac Upp Upp War Pro Res Tes Res Acc Matter Collected 12654 | 324 837 277 1065 451 441 138 185 431 20 172 423 508 320 92 110 454 544 402 90 68 422 142 847 146 157 317 240 306 649 502 1574 Remotely . | . . . . . . . . . . . . . . . . . . . . . . . . . . . . . . . . Salvage Created 24403 | 227 1014 130 1531 1455 912 280 151 292 . 97 1096 800 228 336 449 607 333 410 103 99 1322 1291 1481 99 354 65 211 66 1181 1117 6666 Parts 1108 | 19 57 7 127 84 55 12 7 13 . . 38 38 14 24 23 24 16 17 2 . 65 17 60 6 7 . 12 . 47 28 289 Haulers Intercepted 19 | . 2 . 6 6 2 1 . . . . . . . . 1 . . . . . . . . . . . . . . . 1 Recyclers Shooed 25 | . 5 . 3 3 . . . . . . 2 1 . . . 1 . . . . 2 . 4 . . . . . . . 4 Parts Field Recycled . | . . . . . . . . . . . . . . . . . . . . . . . . . . . . . . . . Retrieved Matter . | . . . . . . . . . . . . . . . . . . . . . . . . . . . . . . . . Parts Self-Destructed 85 | . . . . . . . 6 18 1 . . . . . . . 15 14 2 . . . . 14 7 . 8 . . . . Prevented 5 | . . . . . . . . 2 . . . . . . . . . . . . . . . 3 . . . . . . . Parts Restored . | . . . . . . . . . . . . . . . . . . . . . . . . . . . . . . . . Kills | -11 -10 -10 -9 -9 -8 -7 -7 -7 -7 -6 -6 -6 -6 -6 -6 -5 -5 -5 -5 -4 -4 -4 -4 -4 -4 -4 -3 -3 -3 -2 -1 ------- Run | Yrd Mat Min Mat Sto Mat Fac Low Low Zio Pro Fac Ext Cet Arc Hub Fac Upp Upp Zhi Pro Fac Was Fac Upp Upp War Pro Res Tes Res Acc Combat Hostiles Destroyed 349 | . 15 5 32 26 17 3 4 7 . 2 12 10 3 1 2 13 12 9 . . 25 5 28 1 6 1 7 1 16 15 71 Guns 83 | . 12 5 24 . . . . . . . . . . . . . . . . . 3 . 8 . 2 1 3 . 5 1 19 Cannons 156 | . . . . 24 13 1 2 2 . 1 11 8 3 1 1 9 4 2 . . 13 4 8 . 4 . . . 8 10 27 AOE 71 | . 3 . 8 2 4 1 2 5 . 1 1 . . . . 3 8 5 . . 7 . 9 . . . 3 . 3 2 4 Classes Destroyed 24 | 3 7 . 2 2 1 . . . . . 1 1 . . . . 1 . . . . 1 1 . . 1 1 . . 1 1 Worker 21 | 2 3 . 2 1 . 2 . . . . 2 . . . 3 . . . . . . . 1 . . . . . . . 5 Builder 22 | . 1 . 3 . 4 1 . . . . . 1 . . . 1 . . . . 4 . 2 . . . . . . . 5 Tunneler 6 | 5 1 . . . . . . . . . . . . . . . . . . . . . . . . . . . . . . Hauler 19 | . 2 . 6 6 2 1 . . . . . . . . 1 . . . . . . . . . . . . . . . 1 Recycler 26 | 1 3 1 . 1 1 1 . . . . 4 1 . . 1 . . . . . 1 . 2 . . . . . 2 1 6 Minesweeper 1 | . . . . . . . . . . . . . . . . . 1 . . . . . . . . . . . . . . Mechanic 5 | . 1 . 1 1 . . . . . . . . . . . . . . . . 1 . . . . . . . . . 1 Operator 13 | . 2 . 2 1 . . . . . . . . . 8 . . . . . . . . . . . . . . . . . Drone 2 | . . . . . . . . . . . . . . . . . . . . . . . . . . . 2 . . . . Watcher 19 | . 3 . 2 2 1 . . . . . . 1 1 . 2 . . . . . 1 . 2 . . . . . 1 1 2 Swarmer 95 | . 6 5 12 4 4 . . 7 . . 3 . . . . 4 5 . . . 13 . 13 . 1 . 4 . 4 . 10 Saboteur 1 | . . . . . . . . . . . . . . . . . . . . . . . . . . . . . . . 1 Grunt 98 | . 9 . 9 12 5 1 4 . . 2 3 4 . . . 1 5 5 . . 3 . 7 . 2 . . . 6 6 14 Brawler 3 | . . . . 1 . . . . . . . . . . . . . . . . . . . . . . . . . . 2 Duelist 5 | . . . 1 . . . . . . . . . . . . . 1 . . . . . . . 1 . . . . . 2 Protector 2 | . . . . 1 . . . . . . . . . . . . . . . . . . . . . . . . . . 1 Sentry 44 | . . . 10 8 6 1 . . . . 4 3 . 1 1 1 1 1 . . 1 . 1 . . . . . . 3 2 Specialist 5 | . . . . . . . . . . . . . . . . . . . . . . . 3 . . . . . . . 2 Hunter 23 | . . . . . 2 1 . . . . . . . . . 3 . 2 . . 4 . . . . . . . . 3 8 Programmer 49 | . . . . . . . . . . . 2 1 . . 1 4 . 1 . . 4 . 3 . 2 . . . 6 . 25 Behemoth 10 | . . . . . . . . . . . . 2 . . . . . . . . . . 1 1 . . 1 . . 1 4 Compactor 5 | . . . . . . . . . . . . . . . . . . . . . . 5 . . . . . . . . . Cetus Guard 3 | . . . . . . . . . . . . . 3 . . . . . . . . . . . . . . . . . . Striker 3 | . . . . . . . . . . . . . . . . . . . . . . . . . . 1 . 1 . 1 . Executioner 1 | . . . . . . . . . . . . . . . . . . . . . . . . . . . . . . 1 . Decomposer 3 | . . . . . . . 1 2 . . . . . . . . . . . . . . . . . . . . . . . Packrat 2 | . . . . . . . . 1 . . . . . . . . . . . 1 . . . . . . . . . . . Best Kill Streak 11 | 8 4 3 8 7 7 3 4 4 . 2 6 2 2 6 5 10 5 5 . . 9 2 11 1 3 1 6 1 6 9 7 Combat Bots Only 9 | . 3 3 6 7 4 1 4 4 . 2 3 2 2 1 1 4 5 5 . . 8 2 9 1 3 1 6 1 6 8 5 Max Kills in Single Turn 5 | 1 3 2 3 2 3 3 2 2 . 1 1 2 1 1 4 4 3 3 . 1 4 1 5 1 1 1 2 1 3 2 2 Gunslinging 1 | . . 1 1 . . . . . . . . . . . . . . . . . . . . . . . . . . . . Exploded 4 | . 2 . 3 2 1 1 2 2 . 1 1 . . . . 3 3 3 . . 4 . 4 . . . 2 . 3 2 1 Melee . | . . . . . . . . . . . . . . . . . . . . . . . . . . . . . . . . Uniques/NPCs Destroyed . | . . . . . . . . . . . . . . . . . . . . . . . . . . . . . . . . Combat | -11 -10 -10 -9 -9 -8 -7 -7 -7 -7 -6 -6 -6 -6 -6 -6 -5 -5 -5 -5 -4 -4 -4 -4 -4 -4 -4 -3 -3 -3 -2 -1 -------- Run | Yrd Mat Min Mat Sto Mat Fac Low Low Zio Pro Fac Ext Cet Arc Hub Fac Upp Upp Zhi Pro Fac Was Fac Upp Upp War Pro Res Tes Res Acc Hostile Shots Fired 2723 | . 85 10 147 99 77 50 18 44 . 6 119 192 16 3 33 69 20 33 . . 177 . 176 12 65 1 22 6 120 216 907 Missed 739 | . 26 3 46 23 22 14 4 13 . . 40 61 4 2 17 16 6 10 . . 48 . 45 4 13 . 6 2 18 59 237 Hits 1984 | . 59 7 101 76 55 36 14 31 . 6 79 131 12 1 16 53 14 23 . . 129 . 131 8 52 1 16 4 102 157 670 Melee 24 | . . . 3 . . . . . . . . . . . . . . . . . . . . . 6 . . . . 8 7 Projectile 1960 | . 59 7 98 76 55 36 14 31 . 6 79 131 12 1 16 53 14 23 . . 129 . 131 8 46 1 16 4 102 149 663 Critical Strikes 71 | . 1 . 4 2 3 . 3 1 . . . . 2 . 1 2 . 2 . . 3 . 4 1 5 . 1 . 6 7 23 Actively Blocked 29 | . . . . . . . . . . . . . . . . . . . . . . . 3 1 . . 1 . . 5 19 Part Disruptions 7 | . . . . . . . . . . . 1 . . . . . . . . . . . 1 . . . . . 2 . 3 Damage Taken 39586 | . 643 50 1469 956 808 445 236 511 . 169 865 1387 253 28 714 984 331 360 . . 2143 . 2194 286 1130 256 382 303 2290 3846 16547 Core 3067 | . 51 6 132 113 98 60 32 . . . 30 97 . . . 38 13 74 . . 219 . 127 36 109 19 . 54 61 101 1597 Absorbed by Shields 364 | . . . . . . . . . . . . 124 96 . . . . 60 . . 84 . . . . . . . . . . Reduced by Siege Mode 1436 | . . . . . . . . . . . . . . . . 20 18 . . . 98 . 99 . 94 . . . 121 157 829 Redirected to Shielding 100 | . . . . . . . . . . . . . . . . . . . . . . . . . . . . . . . 100 Regen/Repaired (Parts) 3107 | . 151 . 146 237 . 166 . . 26 . . . . . . 356 . . . . 434 . 1156 . . 435 . . . . . Core Remaining (%) 79 | 100 . 77 . 38 82 . . . . 86 . . . . 85 . . . . 87 . . . . . . 55 . 91 93 . Volleys Fired 1366 | 17 91 10 103 91 54 14 9 31 1 7 66 26 17 29 29 60 32 8 . 15 61 17 76 2 16 4 13 16 54 96 301 Largest 3 | 2 2 2 2 2 2 2 2 2 1 2 2 2 2 2 2 3 3 3 . 3 3 3 3 1 3 3 3 3 3 3 3 Hottest 339 | 40 50 40 136 136 136 160 145 160 80 160 165 165 165 165 165 245 245 240 . 240 258 275 258 90 264 282 282 301 301 339 339 Shots Fired 2464 | 34 178 20 199 180 103 27 14 48 1 9 93 50 35 58 38 103 58 19 . 17 142 49 151 3 49 10 23 24 109 128 492 Gun 776 | 34 173 20 180 . . . . . . . . . . . . . . . . . 18 . 41 1 17 9 15 8 58 16 186 Cannon 1590 | . . . 12 176 98 27 10 37 1 4 90 50 35 58 36 102 49 16 . 17 122 49 105 2 32 1 6 16 50 108 281 Launcher 98 | . 5 . 7 4 5 . 4 11 . 5 3 . . . 2 1 9 3 . . 2 . 5 . . . 2 . 1 4 25 Special . | . . . . . . . . . . . . . . . . . . . . . . . . . . . . . . . . Kinetic 407 | 34 173 20 180 . . . . . . . . . . . . . . . . . . . . . . . . . . . . Thermal 1908 | . . . 12 176 98 27 10 37 1 4 90 50 35 58 36 102 49 16 . 17 140 49 146 3 49 9 21 24 108 124 417 Explosive 73 | . 5 . 7 4 5 . 4 11 . 5 3 . . . 2 1 9 3 . . 2 . 5 . . . 2 . 1 4 . Electromagnetic 75 | . . . . . . . . . . . . . . . . . . . . . . . . . . . . . . . 75 Entropic 1 | . . . . . . . . . . . . . . . . . . . . . . . . . . 1 . . . . . Robot Hit Streak 26 | 9 16 4 24 9 7 12 8 11 . 3 18 22 15 10 4 19 5 10 . 5 17 11 19 . 7 4 3 5 17 26 23 Robot Miss Streak 4 | 4 3 3 3 4 4 3 . 3 . 1 2 1 2 3 3 1 1 1 . . 2 2 3 . 2 1 3 2 2 3 4 Penetration Max . | . . . . . . . . . . . . . . . . . . . . . . . . . . . . . . . . Secondary Targets 5 | . . 1 2 . . . . . . . . . . . . . . . . . . . . . . . . . . . 2 Max Gunslinging Chain 1 | . . 1 1 . . . . . . . . . . . . . . . . . . . . . . . . . . . 1 Capacitor 151 | . . . . . . . . . . . . . . . . . . . . . . . . . . . . . . 67 84 Shots Hit Robots 1409 | 18 112 9 133 108 53 19 8 20 . 4 45 44 26 35 10 47 20 12 1 3 84 39 81 1 32 5 6 11 67 87 269 Core Hits 781 | 9 49 5 68 43 33 9 14 15 . 6 35 19 14 21 17 25 19 12 . 1 46 12 54 . 12 3 8 2 34 45 151 Critical Kills 27 | . . . . 1 2 1 . . . . 1 . . . 1 1 . 2 . . 2 1 4 . 1 . . 1 3 1 5 Critical Parts Destroyed 5 | . 1 . . . . . . . . . . . . . . . . . . . . . 1 . . . . . 2 1 . Critical Strikes 35 | . 1 . . 1 2 1 . . . . 1 . . . 1 1 . 2 . . 2 1 5 . 1 . . 1 5 3 7 Meltdown 20 | . . . . 1 2 1 . . . . 1 . . . 1 1 . 2 . . 2 1 1 . . . . 1 . 1 5 Destroy 13 | . 1 . . . . . . . . . . . . . . . . . . . . . 4 . 1 . . . 5 2 . Corrupt 2 | . . . . . . . . . . . . . . . . . . . . . . . . . . . . . . . 2 Melee Attacks 26 | . . . 10 . . 2 . . . . . 5 . . . . . . 1 . . . 1 1 . . 1 . . 1 4 Impact . | . . . . . . . . . . . . . . . . . . . . . . . . . . . . . . . . Slashing 12 | . . . 10 . . 2 . . . . . . . . . . . . . . . . . . . . . . . . . Piercing 14 | . . . . . . . . . . . . 5 . . . . . . 1 . . . 1 1 . . 1 . . 1 4 Sneak Attacks . | . . . . . . . . . . . . . . . . . . . . . . . . . . . . . . . . Combat Hostiles . | . . . . . . . . . . . . . . . . . . . . . . . . . . . . . . . . Follow-up Attacks . | . . . . . . . . . . . . . . . . . . . . . . . . . . . . . . . . Damage Inflicted 52648 | 228 1615 144 2502 2654 1686 853 488 887 . 313 1801 1185 739 1172 898 1830 1551 828 . 76 3731 1450 4203 . 977 218 494 437 2851 4410 12427 Guns 11731 | 228 1398 126 1924 . . . . . . . . . . . . . . . . . 406 . 927 . 323 218 142 216 1473 365 3985 Cannons 28051 | . . . 125 2283 1104 415 180 511 . 100 1235 1064 739 1172 287 1408 464 292 . 76 2607 1450 1823 . 654 . . 205 943 2825 6089 Explosions 12476 | . 215 . 397 357 575 408 308 376 . 213 541 . . . 611 422 1087 536 . . 710 . 1442 . . . 352 . 433 1220 2273 Melee 95 | . . . . . . . . . . . . 95 . . . . . . . . . . . . . . . . . . . Ramming 295 | . 2 18 56 14 7 30 . . . . 25 26 . . . . . . . . 8 . 11 . . . . 16 2 . 80 Kinetic 3676 | 228 1398 126 1924 . . . . . . . . . . . . . . . . . . . . . . . . . . . . Thermal 36280 | . . . 125 2283 1104 823 180 511 . 100 1235 1064 739 1172 287 1408 464 292 . 76 3013 1450 2990 . 977 218 142 421 2416 3190 9600 Explosive 9050 | . 215 . 397 357 575 . 308 376 . 213 541 . . . 77 422 1087 536 . . 710 . 1202 . . . 352 . 433 1220 29 Electromagnetic 3252 | . . . . . . . . . . . . . . . 534 . . . . . . . . . . . . . . . 2718 Impact . | . . . . . . . . . . . . . . . . . . . . . . . . . . . . . . . . Slashing . | . . . . . . . . . . . . . . . . . . . . . . . . . . . . . . . . Piercing 95 | . . . . . . . . . . . . 95 . . . . . . . . . . . . . . . . . . . Highest Corruption 84 | . 1 1 . 5 . . . . . . . . 11 11 7 4 4 4 4 4 12 35 40 40 41 42 . 1 21 1 84 Average Corruption 12 | . 1 1 . 5 . . . . . . . . 8 6 2 2 4 4 4 4 7 22 35 40 40 41 . 1 10 1 22 Corruption Purged 11 | . . . . . . . . . . . . . . 11 . . . . . . . . . . . . . . . . . Corruption Blocked . | . . . . . . . . . . . . . . . . . . . . . . . . . . . . . . . . Effects 612 | . 14 3 . 16 . . . . . . . . 18 10 . 21 50 22 7 7 3 13 98 24 50 3 . 3 42 8 200 Message Errors 155 | . 6 1 . 4 . . . . . . . . 5 3 . 8 14 5 5 2 . 2 24 7 16 . . . 4 1 48 Matter Fused 126 | . 5 . . 4 . . . . . . . . 4 1 . 4 9 6 2 2 2 3 20 4 4 1 . 2 9 3 41 Heat Flow Errors 68 | . . . . 3 . . . . . . . . 3 1 . . 9 3 . 1 . 2 14 1 7 . . . 4 1 19 Energy Discharges 72 | . 1 1 . . . . . . . . . . 2 2 . 5 6 2 . 1 1 2 12 3 4 . . 1 7 2 20 Parts Rejected 11 | . . . . . . . . . . . . . 1 1 . 1 . . . . . . 1 . 1 . . . 1 . 5 Parts Fused 3 | . . . . . . . . . . . . . . . . . . . . . . . . 1 . . . . . . 2 Data Loss (minor) 55 | . . 1 . 1 . . . . . . . . 2 2 . 2 5 3 . . . . 7 3 6 1 . . 7 . 15 Data Loss (major) 25 | . 2 . . 2 . . . . . . . . . . . . 4 . . 1 . 2 1 3 2 1 . . 2 1 4 Misfires 31 | . . . . 2 . . . . . . . . 1 . . 1 3 1 . . . . 3 1 5 . . . 3 . 11 Alerts 10 | . . . . . . . . . . . . . . . . . . 2 . . . . 1 1 1 . . . 2 . 3 Misdirections 6 | . . . . . . . . . . . . . . . . . . . . . . . 2 . . . . . 1 . 3 Weapon Failures 50 | . . . . . . . . . . . . . . . . . . . . . . 2 13 . 4 . . . 2 . 29 Overload Shots . | . . . . . . . . . . . . . . . . . . . . . . . . . . . . . . . . Overflow Damage 878 | . 10 . 11 13 18 40 . 63 . . 11 . . 27 . . 55 . . 28 107 . 81 . 20 . 16 16 55 45 262 Projectiles 653 | . . . . 13 . . . 63 . . 2 . . 27 . . 35 . . 28 67 . 71 . 20 . . 16 39 42 230 Explosions 225 | . 10 . 11 . 18 40 . . . . 9 . . . . . 20 . . . 40 . 10 . . . 16 . 16 3 32 Melee . | . . . . . . . . . . . . . . . . . . . . . . . . . . . . . . . . Knockbacks 2 | . . . . . . . . . . . . . . . . . . . . . 1 . . . . . . . . . 1 Impact 2 | . . . . . . . . . . . . . . . . . . . . . 1 . . . . . . . . . 1 Kinetic . | . . . . . . . . . . . . . . . . . . . . . . . . . . . . . . . . Secondary . | . . . . . . . . . . . . . . . . . . . . . . . . . . . . . . . . Self-Inflicted Damage 906 | . . . 129 51 46 69 . 15 . . . . . . 148 . 39 . . . . . 24 . . . . . . 30 355 Shots 21 | . . . 2 2 1 1 . 1 . . . . . . 2 . 1 . . . . . 1 . . . . . . 2 8 Rammed 37 | . 1 6 2 2 1 3 . . . . 3 1 . . . . . . . . 2 . 3 . . . . 2 1 . 10 Targets Rammed 40 | . 1 7 3 2 1 3 . . . . 3 1 . . . . . . . . 2 . 3 . . . . 2 1 . 11 Kicked . | . . . . . . . . . . . . . . . . . . . . . . . . . . . . . . . . Crushed 3 | . . 1 1 . . . . . . . . . . . . . . . . . . . . . . . . . . . 1 Highest Temperature 377 | . 10 . 21 240 120 54 63 377 40 96 324 277 176 306 95 112 222 44 . 104 240 158 183 . 50 . 22 . 296 270 197 Average Temperature 76 | . 3 . 5 44 39 15 29 103 22 53 91 85 59 100 36 43 97 19 . 37 96 115 64 . 37 . 22 . 115 95 65 Received Heat Transfer 4773 | . 315 . 498 378 279 87 180 356 . 24 201 372 9 . . 96 72 18 . . 102 . 249 27 228 9 18 24 169 504 558 Effects 7 | . . . . . . . . . . . . 4 . 2 . . . . . . . . . . . . . . 1 . . Energy Bleed 3 | . . . . . . . . . . . . . . 2 . . . . . . . . . . . . . . 1 . . Interference 4 | . . . . . . . . . . . . 4 . . . . . . . . . . . . . . . . . . . Siege Activations 42 | . . . . . . . . . . . . . 1 . . 4 3 1 . . 2 2 4 . 2 . . 1 3 2 17 Total Turns 732 | . . . . . . . . . . . . . 17 . . 44 29 4 . . 61 39 94 . 42 . . 2 69 60 271 Longest Duration 54 | . . . . . . . . . . . . . 17 . . 28 24 4 . . 39 29 54 . 27 . . 2 38 37 36 Martial Activations . | . . . . . . . . . . . . . . . . . . . . . . . . . . . . . . . . Shielding Activations . | . . . . . . . . . . . . . . . . . . . . . . . . . . . . . . . . Robots Disrupted . | . . . . . . . . . . . . . . . . . . . . . . . . . . . . . . . . Combat Hostiles . | . . . . . . . . . . . . . . . . . . . . . . . . . . . . . . . . Robots Corrupted 14 | . . . . . . . . . . . . . . . . . . . . . . . . . . . . . . . 14 Combat Hostiles 11 | . . . . . . . . . . . . . . . . . . . . . . . . . . . . . . . 11 Parts Fried 20 | . . . . . . . . . . . . . . . 1 . . . . . . . . . . . . . . . 19 Impact Corruptions . | . . . . . . . . . . . . . . . . . . . . . . . . . . . . . . . . Robots Melted 23 | . . . . 1 2 1 . . . . 1 . . . 1 1 . 2 . . 3 1 2 . . . . 1 . 1 6 Combat Hostiles 18 | . . . . . . 1 . . . . . . . . 1 1 . 2 . . 2 1 2 . . . . 1 . 1 6 Parts Melted 164 | . . . 1 12 . 3 . . . 1 5 7 1 1 4 9 . 7 . . 14 2 20 . 7 1 . 1 7 9 52 Heat Transferred 47114 | . . . 222 4128 1998 1003 311 961 . 200 2079 1820 1118 1903 448 2281 900 550 . 150 4399 1818 3923 . 1457 259 185 416 2442 3071 9072 Parts Sabotaged . | . . . . . . . . . . . . . . . . . . . . . . . . . . . . . . . . Parts Stolen . | . . . . . . . . . . . . . . . . . . . . . . . . . . . . . . . . Parts Stripped . | . . . . . . . . . . . . . . . . . . . . . . . . . . . . . . . . Power Chain Reactions 3 | . . . . . . . . . . . . . . . . . . . . . . . . . . . . . . . 3 Alert | -11 -10 -10 -9 -9 -8 -7 -7 -7 -7 -6 -6 -6 -6 -6 -6 -5 -5 -5 -5 -4 -4 -4 -4 -4 -4 -4 -3 -3 -3 -2 -1 ------- Run | Yrd Mat Min Mat Sto Mat Fac Low Low Zio Pro Fac Ext Cet Arc Hub Fac Upp Upp Zhi Pro Fac Was Fac Upp Upp War Pro Res Tes Res Acc Maximum Alert Level 4 | . . . 2 1 1 . . . . . . 2 1 . 3 2 . . . . 2 . 2 . . . . 2 1 1 4 Low Security (%) 58 | 100 100 100 52 48 91 100 . . . . 100 62 45 100 38 34 . . . . 62 100 9 . . . . 50 82 52 17 Level 1 26 | . . . 30 51 8 . . . . . . 23 54 . 44 55 . . . . 34 . 62 . . . . 36 17 47 25 Level 2 8 | . . . 17 . . . . . . . . 13 . . 15 10 . . . . 2 . 28 . . . . 12 . . 18 Level 3 2 | . . . . . . . . . . . . . . . 1 . . . . . . . . . . . . . . . 15 Level 4 3 | . . . . . . . . . . . . . . . . . . . . . . . . . . . . . . . 23 Level 5 . | . . . . . . . . . . . . . . . . . . . . . . . . . . . . . . . . High Security . | . . . . . . . . . . . . . . . . . . . . . . . . . . . . . . . . Max Security . | . . . . . . . . . . . . . . . . . . . . . . . . . . . . . . . . Peak Influence 1328 | 20 112 112 504 326 271 130 . . . . 149 466 303 177 783 524 . . . . 459 158 503 . . . . 600 284 312 1328 Initial 600 | . 6 34 . 156 49 26 . . . . . 53 235 46 . 383 . . . . . 158 33 . . . . 600 39 157 144 Average 222 | 5 29 20 197 188 90 46 . . . . 38 152 202 70 226 242 . . . . 175 107 354 . . . . 246 72 167 621 Influence Increases 15307 | 40 563 176 1223 994 663 263 90 215 . 92 405 857 349 305 1284 606 265 210 5 . 853 10 1045 30 140 20 130 673 634 594 2573 Destroy 0b10 Robot/C 7540 | . 300 120 640 580 340 60 80 140 . 60 240 420 160 80 280 260 240 180 . . 500 . 560 20 120 20 100 20 320 300 1400 Destroy 0b10 Robot/NC 725 | 40 80 5 80 65 40 25 . 10 . . 30 30 10 40 45 5 5 . 5 . 35 . 35 . . . 10 . 15 10 105 Destroy Leader 1604 | . 80 20 196 166 116 22 10 20 . 10 50 54 . . 104 80 20 30 . . 92 . 94 10 20 . 20 10 42 72 266 Allied During Kill 944 | . . 16 10 23 . . . . . 22 . 298 167 120 288 . . . . . . . . . . . . . . . . Successful Hack 413 | . 22 . 49 6 33 26 . . . . 14 . . . . 45 . . . . 28 . 28 . . . . 21 76 2 63 Select Force Hacks 90 | . 30 . 60 . . . . . . . . . . . . . . . . . . . . . . . . . . . . Disable Machine 1200 | . 15 15 45 90 30 90 . . . . 30 30 . 60 300 60 . . . . 75 . 120 . . . . . 75 30 135 Destroy Structure 1606 | . 36 . 98 34 74 40 . . . . 26 10 12 5 252 96 . . . . 108 10 178 . . . . 22 76 120 409 Advance Influence 600 | . . . . . . . . . . . . . . . . . . . . . . . . . . . . 600 . . . Partial Spotted 45 | . . . 15 15 . . . . . . . . . . . 15 . . . . . . . . . . . . . . . Lose Combat Pursuer 540 | . . . 30 15 30 . . 45 . . 15 15 . . 15 45 . . . . 15 . 30 . . . . . 30 60 195 Influence Decreases 14205 | 30 484 265 852 1247 722 313 99 210 5 92 295 547 653 421 501 1120 479 265 5 . 400 415 592 418 239 34 130 602 425 632 1713 Entered New Map 1994 | . 4 55 . 215 69 33 4 . 5 . . 57 185 70 . 400 100 11 . . . 295 15 186 23 14 . . 32 123 98 Time Decay 9289 | 30 480 210 595 542 437 280 95 210 . 72 295 382 368 271 220 550 379 254 5 . 340 120 527 222 206 20 130 452 373 459 765 Lost Part 798 | . . . 20 . . . . . . . . 28 . . 10 10 . . . . 60 . 30 10 10 . . . 20 50 550 Lost Ally 491 | . . . 20 40 . . . . . 20 . 80 100 80 121 10 . . . . . . 20 . . . . . . . . Purge Threat 1633 | . . . 217 450 216 . . . . . . . . . 150 150 . . . . . . . . . . . 150 . . 300 Squads Dispatched 75 | . 4 . 4 3 2 2 . . . . 4 2 . . 6 6 . . . . 2 . 6 . . . . 8 3 . 23 Investigation 13 | . 2 . 2 . 1 . . . . . 1 . . . 1 2 . . . . . . . . . . . 4 . . . Extermination 29 | . . . . . . 2 . . . . 2 . . . 2 3 . . . . 2 . 3 . . . . . 3 . 12 Reinforcement 24 | . 2 . 2 1 1 . . . . . 1 2 . . 3 1 . . . . . . 3 . . . . 4 . . 4 Assault 6 | . . . . 2 . . . . . . . . . . . . . . . . . . . . . . . . . . 4 Garrison 3 | . . . . . . . . . . . . . . . . . . . . . . . . . . . . . . . 3 Intercept . | . . . . . . . . . . . . . . . . . . . . . . . . . . . . . . . . Searches Triggered . | . . . . . . . . . . . . . . . . . . . . . . . . . . . . . . . . Construction Impeded 4 | . . . . . . . . . . . 1 2 . . . . . . . . . . 1 . . . . . . . . Haulers Reinforced 4 | . . . . . . . . . . . . . . . . . . . . . . . . . . . . 2 . . 2 Active Scanning Responses . | . . . . . . . . . . . . . . . . . . . . . . . . . . . . . . . . Cargo Convoy Interrupts . | . . . . . . . . . . . . . . . . . . . . . . . . . . . . . . . . Stealth | -11 -10 -10 -9 -9 -8 -7 -7 -7 -7 -6 -6 -6 -6 -6 -6 -5 -5 -5 -5 -4 -4 -4 -4 -4 -4 -4 -3 -3 -3 -2 -1 --------- Run | Yrd Mat Min Mat Sto Mat Fac Low Low Zio Pro Fac Ext Cet Arc Hub Fac Upp Upp Zhi Pro Fac Was Fac Upp Upp War Pro Res Tes Res Acc Distress Signals 39 | . . 1 2 3 3 . . . . . 4 . 2 . 3 . . . . . 1 . 1 . . 2 . 7 1 6 3 Communications Jammed 227 | . . . . . . . . . . . . . . . . . . . . . 28 . 27 . . . 4 . 53 14 101 Distress Signals 221 | . . . . . . . . . . . . . . . . . . . . . 28 . 27 . . . . . 53 14 99 Times Spotted 608 | . 26 6 50 43 28 4 4 9 . 4 20 22 10 15 15 20 13 7 . . 32 5 39 1 10 15 9 11 28 31 131 Peak Tracking Total 16 | . 4 3 6 7 5 3 4 4 . 3 4 4 5 2 14 4 4 3 . . 8 1 9 1 3 4 3 3 6 6 16 Tactical Retreats 31 | . . . 2 1 2 . . 3 . . 1 1 . . 1 2 . . . . 1 . 2 . . . . . 1 4 10 Traps | -11 -10 -10 -9 -9 -8 -7 -7 -7 -7 -6 -6 -6 -6 -6 -6 -5 -5 -5 -5 -4 -4 -4 -4 -4 -4 -4 -3 -3 -3 -2 -1 ------- Run | Yrd Mat Min Mat Sto Mat Fac Low Low Zio Pro Fac Ext Cet Arc Hub Fac Upp Upp Zhi Pro Fac Was Fac Upp Upp War Pro Res Tes Res Acc Traps Triggered 11 | . 2 . . . 1 . . . . . . 1 . . . . . . . . 1 . 1 . . 1 . 3 . . 1 Indirectly . | . . . . . . . . . . . . . . . . . . . . . . . . . . . . . . . . Trap Hack Attempts . | . . . . . . . . . . . . . . . . . . . . . . . . . . . . . . . . Triggered . | . . . . . . . . . . . . . . . . . . . . . . . . . . . . . . . . Disarmed . | . . . . . . . . . . . . . . . . . . . . . . . . . . . . . . . . Reprogrammed . | . . . . . . . . . . . . . . . . . . . . . . . . . . . . . . . . Reused . | . . . . . . . . . . . . . . . . . . . . . . . . . . . . . . . . Traps Extracted . | . . . . . . . . . . . . . . . . . . . . . . . . . . . . . . . . Installed . | . . . . . . . . . . . . . . . . . . . . . . . . . . . . . . . . Triggered . | . . . . . . . . . . . . . . . . . . . . . . . . . . . . . . . . Machines | -11 -10 -10 -9 -9 -8 -7 -7 -7 -7 -6 -6 -6 -6 -6 -6 -5 -5 -5 -5 -4 -4 -4 -4 -4 -4 -4 -3 -3 -3 -2 -1 ---------- Run | Yrd Mat Min Mat Sto Mat Fac Low Low Zio Pro Fac Ext Cet Arc Hub Fac Upp Upp Zhi Pro Fac Was Fac Upp Upp War Pro Res Tes Res Acc Machines Disabled 82 | . 1 1 3 6 2 6 . . . . 2 2 . 4 20 4 . . . . 5 . 8 . . 1 . . 6 2 9 Max in Single Turn 9 | . 1 1 1 1 1 4 . . . . 1 . . 1 9 2 . . . . 1 . 4 . . 1 . . 1 1 2 Garrison Access 8 | . . . . 1 . . . . . . 1 . . . . . . . . . 1 . . . . . . 1 . 2 2 Network Hub 2 | . . . . . . . . . . . . . . . 2 . . . . . . . . . . . . . . . . Machines Repaired . | . . . . . . . . . . . . . . . . . . . . . . . . . . . . . . . . Machines Dismantled . | . . . . . . . . . . . . . . . . . . . . . . . . . . . . . . . . Machines Sabotaged . | . . . . . . . . . . . . . . . . . . . . . . . . . . . . . . . . Overloaded Fab Kills . | . . . . . . . . . . . . . . . . . . . . . . . . . . . . . . . . Hacking | -11 -10 -10 -9 -9 -8 -7 -7 -7 -7 -6 -6 -6 -6 -6 -6 -5 -5 -5 -5 -4 -4 -4 -4 -4 -4 -4 -3 -3 -3 -2 -1 --------- Run | Yrd Mat Min Mat Sto Mat Fac Low Low Zio Pro Fac Ext Cet Arc Hub Fac Upp Upp Zhi Pro Fac Was Fac Upp Upp War Pro Res Tes Res Acc Machines Accessed 98 | . 8 1 13 12 9 5 2 1 . . 3 . . . . 5 1 . 5 . 6 . 4 1 1 2 . 4 5 2 8 Terminals 36 | . 6 1 9 9 8 2 . 1 . . . . . . . . . . . . . . . . . . . . . . . Fabricators 9 | . . . . . . . . . . . 1 . . . . 3 . . . . 2 . 2 . . . . 1 . . . Repair Stations 18 | . 1 . 1 2 . 2 . . . . . . . . . 2 . . . . 2 . 1 . . . . 1 2 . 4 Recycling Units 3 | . 1 . 2 . . . . . . . . . . . . . . . . . . . . . . . . . . . . Scanalyzers 9 | . . . 1 . . 1 . . . . . . . . . . . . . . 1 . 1 . . . . 1 2 1 1 Garrison Access 11 | . . . . 1 1 . . . . . 2 . . . . . . . . . 1 . . . . . . 1 1 1 3 Total Hacks 312 | . 34 1 46 36 32 20 5 1 . . 5 . . . . 20 1 . 18 . 21 . 16 1 1 6 . 6 23 5 14 Successful 182 | . 18 . 29 20 16 14 5 1 . . 3 . . . . 11 1 . 18 . 8 . 10 1 1 6 . 2 10 3 5 Failed 126 | . 16 1 16 16 16 5 . . . . 2 . . . . 9 . . . . 12 . 6 . . . . 4 12 2 9 Catastrophic 27 | . 1 1 3 4 1 . . . . . 1 . . . . . . . . . 2 . 1 . . . . 3 3 . 7 Database Lockouts 4 | . . . 1 . . 1 . . . . . . . . . . . . . . 1 . . . . . . . 1 . . Manual 107 | . 30 1 23 19 22 7 . . . . . . 1 . . 3 . . . . 1 . . . . . . . . . . Terminals 124 | . 27 1 34 24 28 9 . 1 . . . . . . . . . . . . . . . . . . . . . . . Fabricators 23 | . . . . . . . . . . . 2 . . . . 10 . . . . 6 . 4 . . . . 1 . . . Repair Stations 70 | . 4 . 6 11 . 6 . . . . . . . . . 10 . . . . 10 . 10 . . . . 1 5 . 7 Recycling Units 7 | . 3 . 4 . . . . . . . . . . . . . . . . . . . . . . . . . . . . Scanalyzers 37 | . . . 2 . . 5 . . . . . . . . . . . . . . 2 . 2 . . . . 3 17 3 3 Garrison Access 19 | . . . . 1 4 . . . . . 3 . . . . . . . . . 3 . . . . . . 1 1 2 4 Terminal Hacks 66 | . 5 . 12 6 8 2 5 1 . . . . . . . . 1 . 18 . . . . 1 1 6 . . . . . Record 11 | . . . . . . . 4 1 . . . . . . . . . . 6 . . . . . . . . . . . . Part Schematic 6 | . 1 . . . . 1 . . . . . . . . . . . . 4 . . . . . . . . . . . . Robot Analysis 4 | . . . . . . . . . . . . . . . . . . . 4 . . . . . . . . . . . . Prototype ID Bank 16 | . 3 . 1 . 3 . . . . . . . . . . . . . 4 . . . . . . 5 . . . . . Open Door 7 | . . . . 2 . . 1 . . . . . . . . . 1 . . . . . . 1 1 1 . . . . . Emergency Access Points 2 | . . . 2 . . . . . . . . . . . . . . . . . . . . . . . . . . . . Terminal Index 2 | . 1 . 1 . . . . . . . . . . . . . . . . . . . . . . . . . . . . Alert Level 4 | . . . 2 1 1 . . . . . . . . . . . . . . . . . . . . . . . . . . Unreport Threat 7 | . . . 2 3 2 . . . . . . . . . . . . . . . . . . . . . . . . . . Dispatch Records 1 | . . . 1 . . . . . . . . . . . . . . . . . . . . . . . . . . . . Hauler Manifests 1 | . . . 1 . . . . . . . . . . . . . . . . . . . . . . . . . . . . Registered Components 2 | . . . 1 . . 1 . . . . . . . . . . . . . . . . . . . . . . . . . Registered Prototypes 1 | . . . . . 1 . . . . . . . . . . . . . . . . . . . . . . . . . . Zone Layout 2 | . . . 1 . 1 . . . . . . . . . . . . . . . . . . . . . . . . . . Fabricator Hacks 10 | . . . . . . . . . . . 2 . . . . 5 . . . . 2 . 1 . . . . . . . . Network Status 3 | . . . . . . . . . . . . . . . . 1 . . . . 2 . . . . . . . . . . Load Schematic 4 | . . . . . . . . . . . 1 . . . . 2 . . . . . . 1 . . . . . . . . Build 3 | . . . . . . . . . . . 1 . . . . 2 . . . . . . . . . . . . . . . Repair Station Hacks 46 | . 4 . 6 10 . 5 . . . . . . . . . 5 . . . . 3 . 8 . . . . . 3 . 2 Scan Component 26 | . 2 . 3 5 . 3 . . . . . . . . . 3 . . . . 2 . 4 . . . . . 2 . 2 Repair 20 | . 2 . 3 5 . 2 . . . . . . . . . 2 . . . . 1 . 4 . . . . . 1 . . Recycling Unit Hacks . | . . . . . . . . . . . . . . . . . . . . . . . . . . . . . . . . Scanalyzer 18 | . . . 1 . . 4 . . . . . . . . . . . . . . 1 . 1 . . . . 1 7 2 1 Insert Component 3 | . . . . . . 1 . . . . . . . . . . . . . . . . . . . . . . 1 1 . Analyze 1 | . . . . . . 1 . . . . . . . . . . . . . . . . . . . . . . . . . Retrieve Study 14 | . . . 1 . . 2 . . . . . . . . . . . . . . 1 . 1 . . . . 1 6 1 1 Garrison Access Hacks 7 | . . . . 1 . . . . . . 1 . . . . . . . . . 1 . . . . . . 1 . 1 2 Seal Access 7 | . . . . 1 . . . . . . 1 . . . . . . . . . 1 . . . . . . 1 . 1 2 Unauthorized Hacks 35 | . 9 . 10 3 8 3 . . . . . . . . . 1 . . . . 1 . . . . . . . . . . Terminals 30 | . 8 . 8 3 8 3 . . . . . . . . . . . . . . . . . . . . . . . . . Botnet 12 | . 3 . 2 3 2 2 . . . . . . . . . . . . . . . . . . . . . . . . . Operators 3 | . . . 1 . 1 1 . . . . . . . . . . . . . . . . . . . . . . . . . Skim 15 | . 5 . 5 . 5 . . . . . . . . . . . . . . . . . . . . . . . . . . Fabricators 2 | . . . . . . . . . . . . . . . . 1 . . . . 1 . . . . . . . . . . Liberate 2 | . . . . . . . . . . . . . . . . 1 . . . . 1 . . . . . . . . . . Repair Stations . | . . . . . . . . . . . . . . . . . . . . . . . . . . . . . . . . Recycling Units 3 | . 1 . 2 . . . . . . . . . . . . . . . . . . . . . . . . . . . . Tunnel 3 | . 1 . 2 . . . . . . . . . . . . . . . . . . . . . . . . . . . . Scanalyzers . | . . . . . . . . . . . . . . . . . . . . . . . . . . . . . . . . Garrison Access . | . . . . . . . . . . . . . . . . . . . . . . . . . . . . . . . . Data Cores Recovered . | . . . . . . . . . . . . . . . . . . . . . . . . . . . . . . . . Used . | . . . . . . . . . . . . . . . . . . . . . . . . . . . . . . . . Hacking Detections 69 | . 7 1 10 9 9 4 . 1 . . 2 . 1 . . 5 . . . . 4 . 3 . . . . 3 3 1 6 Full Trace Events 4 | . . . . . 1 . . . . . 1 . . . . 2 . . . . . . . . . . . . . . . Feedback Events . | . . . . . . . . . . . . . . . . . . . . . . . . . . . . . . . . Feedback Blocked . | . . . . . . . . . . . . . . . . . . . . . . . . . . . . . . . . Robot Schematics Acquired 3 | . . . . . . . . . 3 . . . . . . . . . . . . . . . . . . . . . . Robots Built . | . . . . . . . . . . . . . . . . . . . . . . . . . . . . . . . . Authchips . | . . . . . . . . . . . . . . . . . . . . . . . . . . . . . . . . Time . | . . . . . . . . . . . . . . . . . . . . . . . . . . . . . . . . Total Robot Build Rating . | . . . . . . . . . . . . . . . . . . . . . . . . . . . . . . . . Part Schematics Acquired 21 | . 1 . . . . 2 . . 14 . . . . . . . . . 4 . . . . . . . . . . . . Parts Built 5 | . . . . . . . . . . . 1 . . . . 4 . . . . . . . . . . . . . . . Authchips . | . . . . . . . . . . . . . . . . . . . . . . . . . . . . . . . . Time 196 | . . . . . . . . . . . 84 . . . . 112 . . . . . . . . . . . . . . . Total Part Build Rating 22 | . . . . . . . . . . . 6 . . . . 16 . . . . . . . . . . . . . . . Part Studies Acquired 14 | . . . 1 . . 2 . . . . . . . . . . . . . . 1 . 1 . . . . 1 6 1 1 Parts Repaired 18 | . 2 . 3 5 . 2 . . . . . . . . . 1 . . . . 1 . 4 . . . . . . . . Time 1029 | . 52 . 78 186 . 38 . . . . . . . . . 216 . . . . 54 . 310 . . . . . 95 . . Parts Recycled . | . . . . . . . . . . . . . . . . . . . . . . . . . . . . . . . . Recycled Matter . | . . . . . . . . . . . . . . . . . . . . . . . . . . . . . . . . Retrieved Matter . | . . . . . . . . . . . . . . . . . . . . . . . . . . . . . . . . Retrieved Components . | . . . . . . . . . . . . . . . . . . . . . . . . . . . . . . . . Parts Scanalyzed 2 | . . . . . . 1 . . . . . . . . . . . . . . . . . . . . . . 1 . . Part Schematics Acquired 1 | . . . . . . 1 . . . . . . . . . . . . . . . . . . . . . . . . . Parts Damaged 1 | . . . . . . . . . . . . . . . . . . . . . . . . . . . . . 1 . . Bothacking | -11 -10 -10 -9 -9 -8 -7 -7 -7 -7 -6 -6 -6 -6 -6 -6 -5 -5 -5 -5 -4 -4 -4 -4 -4 -4 -4 -3 -3 -3 -2 -1 ------------ Run | Yrd Mat Min Mat Sto Mat Fac Low Low Zio Pro Fac Ext Cet Arc Hub Fac Upp Upp Zhi Pro Fac Was Fac Upp Upp War Pro Res Tes Res Acc Used RIF Installer . | . . . . . . . . . . . . . . . . . . . . . . . . . . . . . . . . Robots Hacked . | . . . . . . . . . . . . . . . . . . . . . . . . . . . . . . . . Non-combat . | . . . . . . . . . . . . . . . . . . . . . . . . . . . . . . . . Combat . | . . . . . . . . . . . . . . . . . . . . . . . . . . . . . . . . Robot Hacks Applied . | . . . . . . . . . . . . . . . . . . . . . . . . . . . . . . . . Relay Couplers Released 9 | . . . . . . . . . . . 1 . . . . . . . . . 4 . . . . . . . . . 4 Machine Destruction 1 | . . . . . . . . . . . 1 . . . . . . . . . . . . . . . . . . . . Programmers 8 | . . . . . . . . . . . . . . . . . . . . . 4 . . . . . . . . . 4 Fabnet Peak Effective % . | . . . . . . . . . . . . . . . . . . . . . . . . . . . . . . . . Robots Rewired 10 | . . . . . . . . . . . . 10 . . . . . . . . . . . . . . . . . . . Allies Hacked . | . . . . . . . . . . . . . . . . . . . . . . . . . . . . . . . . Hacks Repelled . | . . . . . . . . . . . . . . . . . . . . . . . . . . . . . . . . Allies | -11 -10 -10 -9 -9 -8 -7 -7 -7 -7 -6 -6 -6 -6 -6 -6 -5 -5 -5 -5 -4 -4 -4 -4 -4 -4 -4 -3 -3 -3 -2 -1 -------- Run | Yrd Mat Min Mat Sto Mat Fac Low Low Zio Pro Fac Ext Cet Arc Hub Fac Upp Upp Zhi Pro Fac Was Fac Upp Upp War Pro Res Tes Res Acc Total Allies 38 | . . 2 . 2 . . . . 4 . . 22 5 . . 1 . . . . . . 2 . . . . . . . . Largest Group 18 | . . 2 2 2 . . . . 4 4 . 16 18 15 10 1 . . . . . . 2 . . . . . . . . Highest-Rated Group 945 | . . 41 41 62 . . . . 118 118 . 537 945 861 632 26 . . . . . . 36 . . . . . . . . Highest-Rated Ally 143 | . . 31 31 31 . . . . 31 31 . 143 135 122 96 26 . . . . . . 26 . . . . . . . . Total Orders 63 | . . . . . . . . . . . 5 11 8 . 5 4 . . . . 3 . 6 . . . . 4 5 . 12 STAY 6 | . . . . . . . . . . . . . 6 . . . . . . . . . . . . . . . . . . FOLLOW 1 | . . . . . . . . . . . . . 1 . . . . . . . . . . . . . . . . . . RETURN 56 | . . . . . . . . . . . 5 11 1 . 5 4 . . . . 3 . 6 . . . . 4 5 . 12 Ally Attacks 334 | . . 3 6 15 . . . . . 30 . 102 59 35 84 . . . . . . . . . . . . . . . . Total Damage 8279 | . . 22 64 231 . . . . . 569 . 2323 1337 848 2885 . . . . . . . . . . . . . . . . Kills 48 | . . 1 . 4 . . . . . 1 . 16 7 3 16 . . . . . . . . . . . . . . . . Allies Corrupted . | . . . . . . . . . . . . . . . . . . . . . . . . . . . . . . . . Allies Melted 2 | . . . . . . . . . . . . . . . . . . . . . . . . . . 2 . . . . . Intel | -11 -10 -10 -9 -9 -8 -7 -7 -7 -7 -6 -6 -6 -6 -6 -6 -5 -5 -5 -5 -4 -4 -4 -4 -4 -4 -4 -3 -3 -3 -2 -1 ------- Run | Yrd Mat Min Mat Sto Mat Fac Low Low Zio Pro Fac Ext Cet Arc Hub Fac Upp Upp Zhi Pro Fac Was Fac Upp Upp War Pro Res Tes Res Acc Active Infowar (turns) 39129 | . 1724 1281 2581 551 1516 829 1570 1912 1453 451 1413 1827 841 830 613 1592 1851 1115 361 353 892 245 1679 463 860 1657 564 1129 1326 1218 4432 Optics 3 | . . . . . . . . . . . 1 . . . . . . . . . . . . . . 2 . . . . . Sensors 26206 | . . . . . . 757 1544 1589 1452 426 1101 1247 344 776 570 1523 1696 1060 361 353 406 169 1136 431 787 1620 514 920 1134 1039 3251 Structural 14765 | . . . . . . . . . . . . . . . . 1144 1711 797 232 353 709 . 1043 406 860 1648 564 1129 1104 363 2702 Seismic 15362 | . 1724 1281 2581 551 938 212 1340 1593 1453 430 971 . . . . . . . . . 689 . . . . . . 1120 479 . . Machine Analysis 32974 | . . . . . 1513 829 1570 1912 1453 451 1413 1827 841 830 613 1592 1851 1115 361 353 892 245 1679 463 860 1657 564 1129 1326 1218 4417 Cloaking 7688 | . . . . . . . . . . . . . . . . . . . . . . . . . . 2 459 780 1177 1056 4214 Jamming 14489 | . . . . . . . . . . . . . . . . 41 . 18 . . 888 245 1676 463 860 1648 564 1129 1323 1204 4430 ECM 1 | . . . . . . . . . . . 1 . . . . . . . . . . . . . . . . . . . . Robot Analysis Total 4 | . . . . . . . . . . . . . . . . . . . 4 . . . . . . . . . . . . Derelict Logs Recovered 8 | . . 1 . . . . 1 1 2 . . . . . . . . . . 1 . . . 1 1 . . . . . . Drone Launches 58 | . . . . . . . . . . . 5 11 1 . 5 4 . . . . 3 . 6 . . . . 4 6 . 13 Drone Recoveries 57 | . . . . . . . . . . . 5 11 1 . 5 4 . . . . 3 . 6 . . . . 4 6 . 12 Exploration | -11 -10 -10 -9 -9 -8 -7 -7 -7 -7 -6 -6 -6 -6 -6 -6 -5 -5 -5 -5 -4 -4 -4 -4 -4 -4 -4 -3 -3 -3 -2 -1 ------------- Run | Yrd Mat Min Mat Sto Mat Fac Low Low Zio Pro Fac Ext Cet Arc Hub Fac Upp Upp Zhi Pro Fac Was Fac Upp Upp War Pro Res Tes Res Acc Turns Passed 41014 | 132 2349 1281 2612 1559 1516 829 1570 1912 1453 451 1413 1827 841 830 613 1592 1851 1115 361 353 892 245 1679 463 860 1657 564 1129 1326 1218 4521 Spaces Moved 18754 | 43 1091 513 1220 585 563 406 892 945 859 246 614 759 358 144 278 669 1053 637 211 188 295 91 594 270 469 936 301 570 541 536 1877 Core 1 | 1 . . . . . . . . . . . . . . . . . . . . . . . . . . . . . . . Treads 18753 | 42 1091 513 1220 585 563 406 892 945 859 246 614 759 358 144 278 669 1053 637 211 188 295 91 594 270 469 936 301 570 541 536 1877 Legs . | . . . . . . . . . . . . . . . . . . . . . . . . . . . . . . . . Wheels . | . . . . . . . . . . . . . . . . . . . . . . . . . . . . . . . . Hover . | . . . . . . . . . . . . . . . . . . . . . . . . . . . . . . . . Flight . | . . . . . . . . . . . . . . . . . . . . . . . . . . . . . . . . Fastest Speed 50 | 50 160 240 160 160 160 160 167 167 167 167 164 164 160 160 160 160 160 160 160 160 160 160 160 160 160 160 163 160 173 163 163 Average Speed 166 | 157 174 240 160 160 160 169 169 167 167 167 165 164 160 160 160 160 160 160 160 160 160 160 160 160 160 160 163 163 173 168 167 Slowest Speed 250 | 160 240 240 240 160 160 170 170 167 167 167 242 166 165 160 160 160 160 160 160 160 160 160 160 160 160 163 163 173 250 173 210 Overloaded Moves . | . . . . . . . . . . . . . . . . . . . . . . . . . . . . . . . . Propulsion Burnouts . | . . . . . . . . . . . . . . . . . . . . . . . . . . . . . . . . Robots Hopped . | . . . . . . . . . . . . . . . . . . . . . . . . . . . . . . . . Potential Cave-ins 19 | . . . . . . . . 4 . 2 2 . . . . 2 . . . . . . 2 . . . . . . 2 5 Cave-ins Triggered . | . . . . . . . . . . . . . . . . . . . . . . . . . . . . . . . . Teleports 1 | . . . . . . . . . . . . . . . . . . . . . . . . . . . . . . . 1 Exploration Rate (%) 57 | 3 96 98 96 93 43 14 90 86 88 41 17 85 70 80 45 17 96 82 60 36 10 79 20 49 62 90 54 20 66 18 49 Regions Visited 31 Branch Regions 19 Pre-discovered Areas 16 | . 2 1 5 . 2 . . . 3 . . . . . . . . . 3 . . . . . . . . . . . . Known Exits Taken 27 | . . 1 1 1 1 1 1 1 1 1 1 1 1 1 1 1 1 1 1 1 . . 1 1 1 1 1 1 1 1 . Unknown Exits Taken 2 | 1 1 . . . . . . . . . . . . . . . . . . . . . . . . . . . . . . Scrap Searched 29 | . . 1 . . . . 8 2 2 1 . . . . . . 4 5 . 2 . . . 2 1 . 1 . . . . Spaces Dug 469 | . 15 . 56 18 . 2 5 67 . . 11 2 . . 12 21 46 24 . 7 20 . 15 2 . . 39 6 32 14 55 Terrain Destroyed 1571 | . 32 . 112 30 72 48 23 98 . 39 28 4 3 4 352 48 154 55 . 14 55 5 103 2 8 . 47 11 40 41 143 Melee 12 | . . . 10 . . 2 . . . . . . . . . . . . . . . . . . . . . . . . . Projectile 414 | . . . . . . . 1 1 . . 21 4 3 4 18 41 16 . . 14 31 5 50 2 8 . 12 11 23 29 120 AOE 1145 | . 32 . 102 30 72 46 22 97 . 39 7 . . . 334 7 138 55 . . 24 . 53 . . . 35 . 17 12 23 Terrain Rammed . | . . . . . . . . . . . . . . . . . . . . . . . . . . . . . . . . Walls Destroyed . | . . . . . . . . . . . . . . . . . . . . . . . . . . . . . . . . Machines Disabled . | . . . . . . . . . . . . . . . . . . . . . . . . . . . . . . . . Actions | -11 -10 -10 -9 -9 -8 -7 -7 -7 -7 -6 -6 -6 -6 -6 -6 -5 -5 -5 -5 -4 -4 -4 -4 -4 -4 -4 -3 -3 -3 -2 -1 --------- Run | Yrd Mat Min Mat Sto Mat Fac Low Low Zio Pro Fac Ext Cet Arc Hub Fac Upp Upp Zhi Pro Fac Was Fac Upp Upp War Pro Res Tes Res Acc Total 26279 | 69 1352 534 1679 1033 1076 515 938 1221 880 271 910 1258 594 683 400 1097 1159 710 233 224 589 149 1173 295 542 1087 347 748 829 800 2884 Wait 4356 | . 105 . 201 290 384 50 21 207 10 7 162 253 168 499 76 319 46 42 . 17 184 20 407 3 40 73 7 82 159 93 431 Move 18724 | 42 1090 512 1219 584 562 405 891 944 858 245 613 758 357 143 277 668 1052 636 210 187 295 90 593 269 468 935 300 569 540 535 1877 Hop . | . . . . . . . . . . . . . . . . . . . . . . . . . . . . . . . . Pick Up 260 | 2 22 3 36 11 15 8 4 3 4 . 8 8 6 1 1 9 1 1 1 2 7 4 9 2 3 12 2 11 6 12 46 Fast Attach 203 | 6 5 . 8 6 7 3 . 3 . . 6 2 7 4 . 4 2 2 9 . 1 . 19 5 3 19 1 20 14 10 37 Attach 108 | . 2 . 3 . 2 2 . 1 . . 3 8 . . . 5 . . 1 1 8 1 2 1 . 5 . 2 3 10 48 Detach 33 | . 1 . . . 1 . . . . . 1 1 . 1 . 1 . . 1 . . 1 . . . 3 . 2 2 1 17 Swap 629 | 2 19 1 41 29 27 15 9 26 2 12 33 47 17 4 16 23 24 18 1 1 28 12 41 6 8 7 19 15 34 23 69 Drop 394 | . 16 1 55 20 23 13 4 6 5 . 15 9 22 2 1 8 2 3 9 1 3 4 22 6 4 29 4 29 16 19 43 Fire 1366 | 17 91 10 103 91 54 14 9 31 1 7 66 26 17 29 29 60 32 8 . 15 61 17 76 2 16 4 13 16 54 96 301 Melee 26 | . . . 10 . . 2 . . . . . 5 . . . . . . 1 . . . 1 1 . . 1 . . 1 4 Ram . | . . . . . . . . . . . . . . . . . . . . . . . . . . . . . . . . Kick . | . . . . . . . . . . . . . . . . . . . . . . . . . . . . . . . . Crush 40 | . 1 7 3 2 1 3 . . . . 3 1 . . . . . . . . 2 . 3 . . . . 2 1 . 11 Escape Stasis . | . . . . . . . . . . . . . . . . . . . . . . . . . . . . . . . . Rewire 140 | . . . . . . . . . . . . 140 . . . . . . . . . . . . . . . . . . . Trap . | . . . . . . . . . . . . . . . . . . . . . . . . . . . . . . . . Miscellaneous . | . . . . . . . . . . . . . . . . . . . . . . . . . . . . . . . . Route ------- -11/Scrapyard -10/Materials (discovered 6 exits: *Mat x3 / *Min x2 / Sub) -10/Mines (discovered 3 exits: *Mat x2 / *Sub) -9/Materials (discovered 6 exits: *Mat x3 / *Min / *Sto x2) -9/Storage (discovered 2 exits: *Mat / *Rec) -8/Materials (discovered 2 exits: *Fac x2) -7/Factory (discovered 4 exits: Fac x2 / *Low x2) -7/Lower Caves -7/Lower Caves (discovered 2 exits: *Fac / *Zio) -7/Zion -6/Proximity Caves -6/Factory (discovered 8 exits: *Fac x4 / Low x2 / *Ext x2) -6/Extension (discovered 3 exits: *Fac x2 / *Cet) -6/Cetus (discovered 2 exits: *Fac / *Arc) -6/Archives (discovered 2 exits: *Hub x2) -6/Hub_04(d) (discovered 4 exits: *Fac x4) -5/Factory (discovered 6 exits: Fac x4 / *Upp x2) -5/Upper Caves -5/Upper Caves (discovered 2 exits: *Fac / *Zhi) -5/Zhirov -4/Proximity Caves -4/Factory (discovered 6 exits: Res x4 / Upp x2) -4/Waste -4/Factory (discovered 6 exits: Res x4 / *Upp x2) -4/Upper Caves -4/Upper Caves (discovered 2 exits: Res / *War) -4/Warlord -3/Proximity Caves -3/Research (discovered 6 exits: Res x3 / *Arm / *Tes x2) -3/Testing -2/Research -1/Access (discovered 2 exits: *Sur / Com) History --------- Turn | Location | Event 14 | -11/Scrapyard | Discovered new exit (range 16) 133 | -11/Scrapyard | Entered Materials 288 | -10/Materials | Discovered new exit (range 5) 307 | -10/Materials | Build established: Mutant 378 | -10/Materials | Discovered new exit (range 15) 669 | -10/Materials | Repaired Lgt. Treads 696 | -10/Materials | Repaired Lgt. Treads 1532 | -10/Materials | Discovered new exit (range 16) 1546 | -10/Materials | Discovered new exit (range 9) 1614 | -10/Materials | Learned location of 1 exit from Recycling 1656 | -10/Materials | Learned Storage emergency access door positions 1689 | -10/Materials | Learned Storage trap positions 1711 | -10/Materials | Identified exit to Materials 1724 | -10/Materials | Identified exit to Subcaves 1724 | -10/Materials | Learned location of 1 exit from Materials 1726 | -10/Materials | Loaded intel: 37 machine locations 1730 | -10/Materials | Learned location of 2 exits from Materials 1744 | -10/Materials | Loaded intel: 22 trap records 1769 | -10/Materials | Learned 2 Storage zone layouts 1804 | -10/Materials | Learned location of Recycling (-9) 2482 | -10/Materials | Entered Mines 2534 | -10/Mines | Met a Derelict bent on vengeance 2583 | -10/Mines | Discovered exit to Subcaves (range 9) 2855 | -10/Mines | Learned location of Zion (-7) 3738 | -10/Mines | Discovered exit to Materials (range 10) 3763 | -10/Mines | Entered Materials 3763 | -9/Materials | Accompanied by 2 allies 3763 | -9/Materials | Evolved 2 slots: Propulsion x1, Utility x1 3764 | -9/Materials | Identified exit to Mines 3764 | -9/Materials | Identified exit to Materials 3764 | -9/Materials | Identified exit to Storage 3769 | -9/Materials | Led the pair of lost Derelicts to an unsafe place 4017 | -9/Materials | Central database locked down 4194 | -9/Materials | Discovered exit to Materials (range 11) 4388 | -9/Materials | Discovered exit to Storage (range 6) 4526 | -9/Materials | Build established: Scavenger-Mutant 4681 | -9/Materials | Discovered exit to Materials (range 7) 4906 | -9/Materials | Loaded intel: 10 trap records 4968 | -9/Materials | Learned location of 2 exits from Materials 5167 | -9/Materials | Learned Storage garrison access intel 5761 | -9/Materials | Repaired Seismic Detector 5789 | -9/Materials | Repaired Lgt. Treads 5816 | -9/Materials | Repaired Lgt. Treads 6375 | -9/Materials | Entered Storage 6376 | -9/Storage | Identified exit to Recycling 6378 | -9/Storage | Loaded intel: 15 trap records 6380 | -9/Storage | Loaded intel: 1 garrison access location 6624 | -9/Storage | Met a pair of Derelict thieves 6768 | -9/Storage | Destroyed 7 combat bots 6818 | -9/Storage | Repaired Rocket Launcher 6845 | -9/Storage | Repaired Lgt. Treads 6873 | -9/Storage | Repaired Lgt. Treads 7225 | -9/Storage | Used back door to open Recycling access 7277 | -9/Storage | Core integrity fell below 50% 7434 | -9/Storage | Build established: Mutant 7455 | -9/Storage | Repaired Adv. Beam Cannon 7507 | -9/Storage | Repaired Adv. Beam Cannon 7833 | -9/Storage | Discovered exit to Materials (range 8) 7934 | -9/Storage | Entered Materials 7934 | -8/Materials | Evolved 2 slots: Propulsion x1, Utility x1 7935 | -8/Materials | Identified exit to Factory 8210 | -8/Materials | Build established: Scavenger-Mutant 9121 | -8/Materials | Learned 4 Factory zone layouts 9226 | -8/Materials | Learned Recycling recycling unit intel 9265 | -8/Materials | Learned location of 3 exits from Factory 9312 | -8/Materials | Learned location of 1 exit from Lower Caves 9450 | -8/Materials | Entered Factory 9450 | -7/Factory | Evolved 2 slots: Utility x2 9451 | -7/Factory | Identified exit to Lower Caves 9452 | -7/Factory | Identified exit to Factory 9919 | -7/Factory | Build established: Skirmisher 10063 | -7/Factory | Central database locked down 10063 | -7/Factory | Watched by a mysterious "MATRIX" hacker. 10152 | -7/Factory | Repaired Arm. Treads 10172 | -7/Factory | Repaired Arm. Treads 10279 | -7/Factory | Entered Lower Caves 10280 | -7/Lower Caves | Identified exit to Lower Caves 10972 | -7/Lower Caves | Entered an active Warlord outpost 10986 | -7/Lower Caves | Learned Armory emergency access door positions 11319 | -7/Lower Caves | Encountered a Warlord checkpoint 11355 | -7/Lower Caves | Learned Factory stockpile data 11849 | -7/Lower Caves | Entered another Lower Caves area 11870 | -7/Lower Caves | Found Alien Artifact 11870 | -7/Lower Caves | Identified Core Expander 11870 | -7/Lower Caves | Installed Core Expander, added new Power slot 11951 | -7/Lower Caves | Discovered exit to Factory (range 14) 12021 | -7/Lower Caves | Attracted the attention of an 0b10 checkpoint 12250 | -7/Lower Caves | Learned Factory terminal intel 12505 | -7/Lower Caves | Spotted B-75 Beast 13012 | -7/Lower Caves | Encountered a Warlord checkpoint 13577 | -7/Lower Caves | Discovered new exit (range 12) 13759 | -7/Lower Caves | Identified exit to Zion 13761 | -7/Lower Caves | Entered Zion 13795 | -7/Zion | Learned Factory terminal intel 13849 | -7/Zion | Gained Derelict followers 13876 | -7/Zion | Found CR-A16's Pointy Stick 13941 | -7/Zion | Discovered new exit (range 16) 13964 | -7/Zion | Identified exit to Proximity Caves 14312 | -7/Zion | Learned location of Warlord (-4) 14349 | -7/Zion | Learned 8 Factory zone layouts 14407 | -7/Zion | Met Imprinter 14681 | -7/Zion | Received a hallucinogenic algorithm 14765 | -7/Zion | Given the Hacking Drone Bay 14766 | -7/Zion | Found Prototype Device 14767 | -7/Zion | Identified Hacking Drone Bay 15045 | -7/Zion | Given A8's code to call for help 15214 | -7/Zion | Entered Proximity Caves 15214 | -6/Proximity Caves | Accompanied by 4 allies 15593 | -6/Proximity Caves | Spotted B-75 Beast 15643 | -6/Proximity Caves | Discovered exit to Factory (range 14) 15646 | -6/Proximity Caves | Lost 3 allies 15665 | -6/Proximity Caves | Entered Factory 15665 | -6/Factory | Evolved 2 slots: Propulsion x1, Utility x1 15666 | -6/Factory | Identified exit to Lower Caves 15668 | -6/Factory | Loaded intel: 26 terminal locations 16269 | -6/Factory | Identified exit to Factory 16270 | -6/Factory | Discovered new exit (range 19) 16446 | -6/Factory | Identified exit to Extension 16622 | -6/Factory | Fabricated Tiamat Missile Launcher? 17078 | -6/Factory | Entered Extension 17124 | -6/Extension | Build established: Scavenger-Skirmisher 17177 | -6/Extension | Rescued a captive Derelict 17179 | -6/Extension | Rescued a captive Derelict 17205 | -6/Extension | Rescued A7 17248 | -6/Extension | Rescued a captive Derelict 17320 | -6/Extension | Identified exit to Cetus 17356 | -6/Extension | Rescued a captive Derelict 17401 | -6/Extension | Rescued a captive Derelict 17954 | -6/Extension | Spotted B-75 Beast 17969 | -6/Extension | Spotted B-75 Beast 17987 | -6/Extension | Revealed the true nature of CR-A16's Pointy Stick 17990 | -6/Extension | Destroyed B-75 Beast 17995 | -6/Extension | Destroyed B-75 Beast 18022 | -6/Extension | Lost 6 parts (2p3n1u) 18142 | -6/Extension | Rescued a captive Derelict 18143 | -6/Extension | Rescued a captive Derelict 18304 | -6/Extension | Rescued a captive Derelict 18322 | -6/Extension | Rescued a captive Derelict 18323 | -6/Extension | Rescued a captive Derelict 18426 | -6/Extension | Rescued a captive Derelict 18905 | -6/Extension | Entered Cetus 18905 | -6/Cetus | Accompanied by 16 allies (A7) 18910 | -6/Cetus | Acquired a Cetus Manufacturing Module code from A7 18961 | -6/Cetus | Spotted Cetus Guard 18962 | -6/Cetus | Spotted Cetus Guard 18967 | -6/Cetus | Spotted Cetus Guard 18968 | -6/Cetus | Destroyed Cetus Guard 18971 | -6/Cetus | Spotted Cetus Guard 18992 | -6/Cetus | Allies destroyed Cetus Guard 18995 | -6/Cetus | Allies destroyed Cetus Guard 18996 | -6/Cetus | Allies destroyed Cetus Guard 19024 | -6/Cetus | Lost 3 allies 19170 | -6/Cetus | Started Cetus Manufacturing Module 19191 | -6/Cetus | Escorted A7 to Cetus Mainframe 19195 | -6/Cetus | Manufactured an Enhanced Grunt 19211 | -6/Cetus | Discovered new exit (range 16) 19220 | -6/Cetus | Manufactured an Enhanced Grunt 19233 | -6/Cetus | Identified exit to Archives 19245 | -6/Cetus | Manufactured an Enhanced Grunt 19270 | -6/Cetus | Manufactured an Enhanced Grunt 19295 | -6/Cetus | Manufactured an Enhanced Grunt 19346 | -6/Cetus | Spotted Cetus Guard 19347 | -6/Cetus | Spotted Cetus Guard 19351 | -6/Cetus | Spotted Cetus Guard 19353 | -6/Cetus | Spotted Cetus Guard 19357 | -6/Cetus | Destroyed Cetus Guard 19363 | -6/Cetus | Allies destroyed Cetus Guard 19366 | -6/Cetus | Destroyed Cetus Guard 19369 | -6/Cetus | Allies destroyed Cetus Guard 19394 | -6/Cetus | Discovered exit to Factory (range 15) 19399 | -6/Cetus | Lost 3 allies 19407 | -6/Cetus | Met Revision 17 19414 | -6/Cetus | System corruption reached 10% 19655 | -6/Cetus | Security sweep announced 19695 | -6/Cetus | Build established: Commander-Skirmisher 19746 | -6/Cetus | Entered Archives 19746 | -6/Archives | Accompanied by 15 allies (A7) 19751 | -6/Archives | Received a hacking code to weaken MAIN.C 19809 | -6/Archives | Lost 4 allies 19907 | -6/Archives | Discovered new exit (range 15) 20527 | -6/Archives | Discovered new exit (range 13) 20544 | -6/Archives | Identified exit to Hub_04(d) 20576 | -6/Archives | Entered Hub_04(d) 20576 | -6/Hub_04(d) | Accompanied by 10 allies 20711 | -6/Hub_04(d) | Discovered exit to Factory (range 17) 20874 | -6/Hub_04(d) | Discovered exit to Factory (range 11) 20938 | -6/Hub_04(d) | Lost 5 allies 21164 | -6/Hub_04(d) | Network Hub disabled 21176 | -6/Hub_04(d) | Spotted Lightning 21178 | -6/Hub_04(d) | Network Hub disabled 21178 | -6/Hub_04(d) | Spotted Lightning 21178 | -6/Hub_04(d) | Spotted Lightning 21189 | -6/Hub_04(d) | Entered Factory 21189 | -5/Factory | Evolved 2 slots: Utility x1, Weapon x1 21190 | -5/Factory | Loaded intel: 24 terminal locations 21363 | -5/Factory | Identified exit to Upper Caves 21756 | -5/Factory | Identified exit to Factory 21892 | -5/Factory | Build established: Scavenger-Skirmisher 22000 | -5/Factory | Fabricated Plasma Cannon (x2) 22012 | -5/Factory | Fabricated Plasma Cannon? 22305 | -5/Factory | Repaired Centrium Heavy Treads 22781 | -5/Factory | Entered Upper Caves 22979 | -5/Upper Caves | Entered a destroyed Warlord outpost 23295 | -5/Upper Caves | Attracted the attention of an 0b10 checkpoint 24300 | -5/Upper Caves | Discovered new exit (range 15) 24631 | -5/Upper Caves | Identified exit to Upper Caves 24632 | -5/Upper Caves | Entered another Upper Caves area 24634 | -5/Upper Caves | Attracted the attention of an 0b10 checkpoint 24796 | -5/Upper Caves | Discovered exit to Factory (range 8) 25319 | -5/Upper Caves | Discovered new exit (range 16) 25343 | -5/Upper Caves | Identified exit to Zhirov 25747 | -5/Upper Caves | Entered Zhirov 25749 | -5/Zhirov | Discovered new exit (range 3) 25751 | -5/Zhirov | Identified exit to Proximity Caves 25778 | -5/Zhirov | Met Zhirov 25813 | -5/Zhirov | Learned location of Quarantine (-2) 25813 | -5/Zhirov | Learned location of Testing (-3) 25813 | -5/Zhirov | Learned location of Command (-1) 25823 | -5/Zhirov | Zhirov requested help retrieving the SGEMP Prototype 25854 | -5/Zhirov | Found Alien Artifact 25854 | -5/Zhirov | Identified Integrated Reactor 25854 | -5/Zhirov | Installed Integrated Reactor, increased core energy generation (+10) 26034 | -5/Zhirov | Found Alien Artifact 26053 | -5/Zhirov | Build established: Scavenger-Mutant 26108 | -5/Zhirov | Entered Proximity Caves 26165 | -4/Proximity Caves | Learned 12 Research zone layouts 26404 | -4/Proximity Caves | Build established: Scavenger-Skirmisher 26440 | -4/Proximity Caves | Discovered exit to Factory (range 7) 26461 | -4/Proximity Caves | Entered Factory 26461 | -4/Factory | Evolved 2 slots: Utility x2 26669 | -4/Factory | Repaired Centrium Medium Armor Plating 26779 | -4/Factory | Identified exit to Research 26781 | -4/Factory | Identified exit to Upper Caves 26850 | -4/Factory | Build established: Scavenger-Tank 26870 | -4/Factory | Central database locked down 27243 | -4/Factory | Destroyed 8 combat bots 27322 | -4/Factory | System corruption reached 10% 27329 | -4/Factory | Lost 3 parts (1p2w) 27353 | -4/Factory | Sucked down chute 27353 | -4/Factory | Entered Waste 27368 | -4/Waste | EMP discharged 27369 | -4/Waste | Spotted C-40 Crusher 27372 | -4/Waste | Destroyed C-40 Crusher 27384 | -4/Waste | Spotted C-40 Crusher 27387 | -4/Waste | Destroyed C-40 Crusher 27403 | -4/Waste | Spotted C-40 Crusher 27418 | -4/Waste | Destroyed C-40 Crusher 27439 | -4/Waste | Spotted C-40 Crusher 27457 | -4/Waste | Destroyed C-40 Crusher 27461 | -4/Waste | Spotted C-40 Crusher 27468 | -4/Waste | EMP discharged 27469 | -4/Waste | Destroyed C-40 Crusher 27568 | -4/Waste | EMP discharged 27568 | -4/Waste | System corruption reached 30% 27584 | -4/Waste | Discovered new exit (range 10) 27597 | -4/Waste | Identified exit to Factory 27598 | -4/Waste | Entered Factory 27776 | -4/Factory | Destroyed 9 combat bots 28334 | -4/Factory | Spotted B-86 Titan 28348 | -4/Factory | Destroyed B-86 Titan 28820 | -4/Factory | Build established: Scavenger-Skirmisher 28864 | -4/Factory | Repaired Centrium Medium Armor Plating 28973 | -4/Factory | Repaired Centrium Medium Armor Plating 29018 | -4/Factory | Repaired Plasma Cannon+ 29069 | -4/Factory | Repaired Hvy. Plasma Cannon 29277 | -4/Factory | Entered Upper Caves 29323 | -4/Upper Caves | Spotted B-86 Titan 29335 | -4/Upper Caves | Destroyed B-86 Titan 29397 | -4/Upper Caves | Build established: Scavenger-Tank 29618 | -4/Upper Caves | Learned Research stockpile data 29706 | -4/Upper Caves | Discovered new exit (range 16) 29730 | -4/Upper Caves | Identified exit to Upper Caves 29740 | -4/Upper Caves | Entered another Upper Caves area 30568 | -4/Upper Caves | Discovered new exit (range 12) 30596 | -4/Upper Caves | Attracted the attention of an 0b10 checkpoint 30598 | -4/Upper Caves | Identified exit to Warlord 30600 | -4/Upper Caves | Entered Warlord 30657 | -4/Warlord | System corruption cleaned by Quarantine Array 31169 | -4/Warlord | Found Prototype Device 31169 | -4/Warlord | Identified Minesniffer Drone Bay 31328 | -4/Warlord | Received a Watcher feed algorithm from an ecstatic Tinkerer 31415 | -4/Warlord | Warlord's base attacked by MAIN.C 31436 | -4/Warlord | Met Warlord 31624 | -4/Warlord | Found Prototype Energy Cannon 31624 | -4/Warlord | Identified Vortex Cannon 31628 | -4/Warlord | Found Prototype Energy Gun 31628 | -4/Warlord | Identified Vortex Rail 31640 | -4/Warlord | Found Vortex Cannon 31765 | -4/Warlord | Warlord forces counterattacked 31771 | -4/Warlord | Lost 4 allies 31792 | -4/Warlord | Found Prototype Reactor 31792 | -4/Warlord | Identified Vortex Chain Reactor 31826 | -4/Warlord | Found Prototype Device 31826 | -4/Warlord | Identified Exp. Cloaking Device 31835 | -4/Warlord | Found Prototype Device 31835 | -4/Warlord | Identified Exp. Focal Shield 31838 | -4/Warlord | Found Prototype Processor 31838 | -4/Warlord | Identified Spectral Analyzer 31971 | -4/Warlord | Spotted B-86 Titan 32090 | -4/Warlord | Warlord base infiltrated, sounded retreat 32091 | -4/Warlord | Enhanced Grunt warped into view 32091 | -4/Warlord | Enhanced Grunt warped into view 32091 | -4/Warlord | Enhanced Grunt warped into view 32091 | -4/Warlord | Enhanced Demolisher warped into view 32091 | -4/Warlord | Enhanced Demolisher warped into view 32091 | -4/Warlord | Enhanced Demolisher warped into view 32119 | -4/Warlord | Spotted Striker 32121 | -4/Warlord | Destroyed Striker 32152 | -4/Warlord | Spotted Executioner 32179 | -4/Warlord | Spotted Executioner 32184 | -4/Warlord | Spotted Striker 32221 | -4/Warlord | Spotted Striker 32225 | -4/Warlord | Lost 12 allies 32241 | -4/Warlord | Discovered new exit (range 12) 32255 | -4/Warlord | Identified exit to Proximity Caves 32257 | -4/Warlord | Entered Proximity Caves 32261 | -3/Proximity Caves | Spotter reported a threat 32263 | -3/Proximity Caves | Spotter reported a threat 32270 | -3/Proximity Caves | Lost 6 allies 32333 | -3/Proximity Caves | Spotter reported a threat 32346 | -3/Proximity Caves | Lost 3 allies 32402 | -3/Proximity Caves | Spotter reported a threat 32527 | -3/Proximity Caves | Spotted B-86 Titan 32538 | -3/Proximity Caves | Destroyed B-86 Titan 32602 | -3/Proximity Caves | Build established: Scavenger-Skirmisher 32797 | -3/Proximity Caves | Discovered exit to Research (range 14) 32821 | -3/Proximity Caves | Entered Research 32821 | -3/Research | Evolved 2 slots: Propulsion x1, Utility x1 32822 | -3/Research | Identified exit to Armory 32840 | -3/Research | Found Prototype Device 32840 | -3/Research | Identified Exp. Thermal Shield 33021 | -3/Research | Revision forces began assault on 0b10 33061 | -3/Research | Met up with Revision 17++ 33119 | -3/Research | Identified exit to Testing 33125 | -3/Research | Identified exit to Research 33521 | -3/Research | Research terminal network offline 33551 | -3/Research | Found Prototype Device 33551 | -3/Research | Identified System Purifier 33599 | -3/Research | Spotted Executioner 33599 | -3/Research | Spotted Striker 33622 | -3/Research | Found Prototype Processor 33622 | -3/Research | Identified Exp. Core Analyzer 33640 | -3/Research | Spotted Striker 33641 | -3/Research | Spotted Striker 33645 | -3/Research | Destroyed Striker 33672 | -3/Research | Found Fusion Bomb Launcher 33915 | -3/Research | Build established: Scavenger-Tank 33950 | -3/Research | Entered Testing 34102 | -3/Testing | Found Prototype Energy Gun 34102 | -3/Testing | Identified Hyp. EM Gauss Rifle 34173 | -3/Testing | Found Prototype Protection 34173 | -3/Testing | Identified Centrium Heavy Armor Plating 34442 | -3/Testing | System corruption reached 10% 34632 | -3/Testing | Found Prototype Energy Cannon 34632 | -3/Testing | Identified Null Cannon 34792 | -3/Testing | Central database locked down 35225 | -3/Testing | Build established: Scientist-Skirmisher 35276 | -3/Testing | Entered Research 35276 | -2/Research | Warlord forces began assault on 0b10 35276 | -2/Research | Evolved 2 slots: Utility x2 35322 | -2/Research | Identified Transdimensional Reconstructor 35386 | -2/Research | Research machine network offline 35484 | -2/Research | Found Corrupted Quantum Capacitor 35561 | -2/Research | Met up with Warlord 35647 | -2/Research | Borebot progress halted 35692 | -2/Research | Spotted Executioner 35698 | -2/Research | Spotted Executioner 35705 | -2/Research | Destroyed Executioner 35775 | -2/Research | Spotted Striker 35779 | -2/Research | Spotted B-90 Cyclops 35780 | -2/Research | Warlord destroyed during the assault 35806 | -2/Research | Destroyed Striker 35833 | -2/Research | Destroyed B-90 Cyclops 35880 | -2/Research | Destroyed 8 combat bots 36025 | -2/Research | Borebot progress halted 36029 | -2/Research | Borebot progress halted 36097 | -2/Research | Discovered new exit (range 4) 36110 | -2/Research | Identified exit to Access 36168 | -2/Research | Lost 4 parts (1n2u1w) 36411 | -2/Research | Build established: Scavenger-Tank 36494 | -2/Research | Entered Access 36494 | -1/Access | Evolved 2 slots: Power x1, Utility x1 36546 | -1/Access | Garrison activated, responded to threat 36929 | -1/Access | Spotted B-99 Colossus 36930 | -1/Access | Destroyed B-99 Colossus 37150 | -1/Access | Lost 3 parts (2u1w) 37210 | -1/Access | Spotted B-99 Colossus 37213 | -1/Access | Destroyed B-99 Colossus 37363 | -1/Access | Found Unknown Protection 37363 | -1/Access | Identified Hvy. Reflective Plating 37441 | -1/Access | Identified exit to Surface 37627 | -1/Access | Build established: Scavenger-Skirmisher 37824 | -1/Access | Found Prototype Processor 37824 | -1/Access | Identified Exp. Signal Interpreter 37999 | -1/Access | Found Unknown Launcher 37999 | -1/Access | Identified Gamma Bomb Array 38587 | -1/Access | System corruption reached 10% 39241 | -1/Access | Lost 6 parts (1p3u2w) 39495 | -1/Access | Build established: Scavenger-Mutant 39794 | -1/Access | System corruption reached 30% 39970 | -1/Access | Found Quantum Capacitor 39978 | -1/Access | Found Quantum Capacitor 39982 | -1/Access | Lost 4 parts (1p2u1w) 39993 | -1/Access | Spotted B-99 Colossus 39994 | -1/Access | First assault squad dispatched 40007 | -1/Access | Destroyed B-99 Colossus 40051 | -1/Access | Lost 3 parts (1p1u1w) 40436 | -1/Access | Identified exit to Command 40876 | -1/Access | Build established: Scavenger-Tank 40938 | -1/Access | Spotted B-99 Colossus 40939 | -1/Access | Core integrity fell below 50% 40949 | -1/Access | Spotted B-99 Colossus 40952 | -1/Access | Destroyed B-99 Colossus 40964 | -1/Access | Core integrity fell below 20% 40974 | -1/Access | Warped through subspace 41001 | -1/Access | Lost 20 parts (6p4n8u2w) 41015 | -1/Access | Destroyed by X-87 Electro with Compact HERF Cannon Last Messages --------------- 40972_ Penetrated by Slug. 40973_ Slug penetrates Wall. 40974_ Penetrated by Slug. 40974_ Slug penetrates Wall. 40974_ Penetrated by Slug. 40974_ Slug penetrates Wall. 40974_ Warped through subspace. 40980_ System corrupted: FCS attempts to trigger Null Cannon. 40980_ System corrupted: Null Cannon misfires. 40995_ System corrupted: Energy discharge (-33). 40996_ Acquired Prototype Reactor. 40996_ Identified Cld. Antimatter Reactor. 40998_ Slug penetrates Wall. 41010_ System corrupted: Matter fused (-9). 41010_ Null Cannon destroyed. 41010_ Exp. Core Analyzer destroyed. 41014_ Arm. Medium Treads+ destroyed. 41015_ Hacking Drone released from Hacking Drone Bay. Map ----- +----------------------------------------------------+ | ### # ????????? ????????? #??????????????? | | # # ????????? ???????? #????????????"?? | | # # ?????????? "???????? #???????????"""? | | # # ????????#? """??????? = #????????????""" | | # # ????????# ?"""??????!%!#?????????????"? | | + + ????????# ??"??????? ! #??????????????? | | # # ????????? ??????????? #??????????????? | | # # ?????????? ??????????? ##########?????? | | # #############/#########?##= ?????? | | + # #"##"% ?????? | | ### % %%/" %/" %== ?????? | | ??###########+### # "#*%=######????????????? | | ???# ## # ###=#%##???????????????? | | ???# ## # #?##%= #???????????????? | | ???# !!! ## # #??#=[ ##??????????????? | | ???# !! ## # #??##!#"####"""######??? | | ???# !! #" # #??#=![ ? | | ???# ! ## # ####!%!!%% ? | | ???# ## " # "!% %% ? | | ???# ## + ## # ] ""###"""##### ?? | | ???# ## # * #??#######?????????????? | | ???# ## # #??????????????????????? | | ???# ## ########??????????????????????? | | ???##########;## H#########????????>???????????? | | x % "????????????????????? | | @n "????????????????????? | | ??############## #######T#????????????????????? | | ???????????????## ##??????##????????????????????? | | ????????????????# #?????????????????????????????? | | ???????????????#" #?????????????????????????????? | | ???????????????## #?????????????????????????????? | | ????????????????# #?????????????????????????????? | | ????????????????# #?????????????????????????????? | | ????????????????# #?????????????????????????????? | | ???????????????? ?????????????????????????????? | | T??????????????? ?????????????????????????????? | | "??????????????? ?????????????????????????????? | | ???????????????? #????????????????????????????? | | ????????????????#####????????????????????????????? | | ?????????????????????????????????????????????????? | | ?????????????????????????????????????????????????? | | ?????????????????????????????????????????????????? | | ?????????????????????????????????????????????????? | | ?????????????????????????????????????????????????? | | ?????????????????????????????????????????????????? | | ?????????????????????????????????????????????????? | | ?????????????????????????????????????????????????? | | ?????????????????????????????????????????????????? | | ?????????????????????????????????????????????????? | | ?????????????????????????????????????????????????? | +----------------------------------------------------+ Best States ------------- Heat Dissipation 280 Energy Generation 71 Energy Capacity 700 Matter Stores 300 Matter Capacity 300 Sight Range 24 Robot Scan Range 16 Terrain Scan Density 10 Jamming Range 16 Cloak Strength 4 Base Temperature (-) 200 Armor Coverage 1200 Utility Shielding 66 Evasion (%) 40 Core Analysis 8 Recoil Reduction 6 Particle Charging 20 Offensive Hacking 10 Item Schematics ----------------- Hcp. Storage Unit | -10/Materials | Hacked Hvy. Ion Cannon | -7/Factory | Hacked Hacking Suite | -7/Factory | Scanalyzed Xenon Bombardment Thruster | -7/Zion | Archive Adv. Signal Interpreter | -7/Zion | Archive Tiamat Missile Launcher | -7/Zion | Archive Arm. Leg | -7/Zion | Archive Plasma Cannon | -7/Zion | Archive Adv. Heat Sink | -7/Zion | Archive Imp. Melee Analysis Suite | -7/Zion | Archive Adv. Hacking Suite | -7/Zion | Archive Imp. Recalibrator | -7/Zion | Archive EM Disruption Field | -7/Zion | Archive Force Field | -7/Zion | Archive Kinecellerator | -7/Zion | Archive Coolant Injector | -7/Zion | Archive Coil Gun | -7/Zion | Archive Assault Drone Bay | -5/Zhirov | Free Exp. Optical Array | -5/Zhirov | Free Exp. Heat Sink | -5/Zhirov | Free Imp. Arc Thrower | -5/Zhirov | Free Robot Schematics ------------------ O-24 Administrator | -7/Zion | Archive G-47 Trooper | -7/Zion | Archive T-07 Excavator | -7/Zion | Archive Fabricated ------------ Tiamat Missile Launcher | x1 | -6/Factory Plasma Cannon | x2 | -5/Factory Plasma Cannon | x2 | -5/Factory Repaired ---------- Lgt. Treads | 37% | -10/Materials Lgt. Treads | 54% | -10/Materials Seismic Detector | 30% | -9/Materials Lgt. Treads | 50% | -9/Materials Lgt. Treads | 55% | -9/Materials Rocket Launcher | 62% | -9/Storage Lgt. Treads | 72% | -9/Storage Lgt. Treads | 74% | -9/Storage Adv. Beam Cannon | 42% | -9/Storage Adv. Beam Cannon | 53% | -9/Storage Arm. Treads | 71% | -7/Factory Arm. Treads | 73% | -7/Factory Centrium Heavy Treads | 55% | -5/Factory Centrium Medium Armor Plating | 27% | -4/Factory Centrium Medium Armor Plating | 7% | -4/Factory Centrium Medium Armor Plating | 32% | -4/Factory Plasma Cannon | 26% | -4/Factory Hvy. Plasma Cannon | 34% | -4/Factory Studied --------- Assault Rifle | -9/Materials | Hacked Plasma Cannon | -7/Factory | Hacked Rocket Launcher | -7/Factory | Hacked Phase Cannon | -4/Factory | Hacked Antimatter Reactor | -4/Factory | Hacked Quantum Rifle | -3/Research | Hacked Nova Cannon | -3/Testing | Hacked Fusion Bomb Launcher | -3/Testing | Hacked Imp. Heavy Siege Treads | -3/Testing | Hacked Arm. Heavy Treads | -3/Testing | Hacked Arm. Medium Treads | -3/Testing | Hacked Adv. Remote Datajack | -3/Testing | Hacked Hvy. Treads | -2/Research | Hacked Enh. Quantum Rifle | -1/Access | Hacked Alien Tech Used ----------------- Core Expander Integrated Reactor Transdimensional Reconstructor Achievements -------------- None Challenges ------------ None Game ------ Seed WeldingCouplerAutopenetrator Manual? 0 Play Time 05:03:43 Cumulative 401.7 hours Start 2026.04.02 @ 18:23:55 End 2026.04.02 @ 23:49:01 Sessions 1 Manual Loads 0 Difficulty Rogue Special Mode None Game No. 246 Rogue 246 Adventurer 0 Explorer 0 Win Type - Total 16 Types 9/1/3/1/1/0/0/1/0/0 Lore% 93 Gallery% 81 Achievement% 70 Wizard Run 0 Options --------- Layout 1 ASCII 0 Keyboard 0 Movement Mouse Keybinds 0 Fullscreen 2 Font 32/SmallcapsGlow Map View 50x35 Zoom Use 0% Tactical HUD 1 Map Filters NONE Filters NONE Steam 1 RUN: 7b606a93-6d23-4c38-a3cb-1368638d2a13